Workbook

Sheet Introduction (hidden)
A1: Serviceability Calculator Instructions
A3: Introduction
A5: Welcome to our Serviceability Calculator. The Calculator has been developed to provide a balanced assessment of clients borrowing capacity.
A9: The Serviceability Calculator incorporates formulas to calculate clients Net Incomes, mortgage repayments and includes built in sensitivity for variance in interest rates to ensure clients can afford repayments when rates change upward by 2.0%. Should your clients return negative Net Disposal Income (NDI) a figure encapsulated in brackets as the result, the proposal may still be referred to us for separate assessment.
A14: Introduction
A15: There are three tabs within this worksheet:
A17: Introduction (this sheet)
A18: Serviceability Calculator
A19: Definitions
A21: How to use the Calculator
A23: Step 1 | B23: Enter the Borrowers name in the box provided, the date should pre-fill to todays date for you.
A25: Step 2 | B25: Enter the Applicants Income details. We have provided for both Taxable and Non-Taxable income; Annual Rental Income and income derived from a Company seperately, please ensure you separate the income correctly and do not include them twice. The interest payable on rented properties may be applied as gearing to offset the individual tax rate.
A28: Step 3 | B28: Enter the number of Single Adults, Couples and their Children in the Living Allowance section.
A30: Step 4 | B30: Enter te applicants living expenses. All relevant expense items must be completed with explanation provided for any items omitted or unusual given the circumstances of the applicant.
A32: Step 5 | B32: Enter the applicants Existing Commitments. This section is broken into two parts: Debt/Limit; and Monthly Payment. Please ensure you complete both of these sections. A floor rate of 5.5% and sensitivity of 2.0% will be factored into the overall calcuation of these commitments to ensure the clients can afford the repayments when their existing commitment rates fluctuate.
A36: Step 6 | B36: Enter the proposed loan amount, interest rate and loan term. The calculator will automatically give you the monthly repayment, and again will factor in a floor rate of 5.5% and 2.0% sensitivity as above. Please note, the calculator works on a Principal & Interest basis only, for Interest Only loans please refer to an Underwriter.
A39: We trust these hints will allow you to provide a suitable service to your clients. If you require any detailed assistance please call your BDM or our Underwriting team.

Sheet Main Menu

Sheet SMSF Introduction (hidden)
A1: SMSF Serviceability Calculator Instructions
A3: Introduction
A5: Welcome to out Serviceability Calculator. The Calculator has been developed to provide a balanced assessment of clients borrowing capacity.
A9: The Serviceability Calculator incorporates formulas to calculate clients Net Incomes, mortgage repayments and includes built in sensitivity for variance in interest rates to ensure clients can afford repayments when rates change upward by 2.0%. Should your clients return negative Net Disposal Income (NDI) a figure encapsulated in brackets as the result, the proposal may still be referred to us for separate assessment.
A14: Introduction
A15: There are three tabs within this worksheet:
A17: Introduction (this sheet)
A18: Serviceability Calculator
A19: Definitions
A21: How to use the Calculator
A23: This calculator uses a Macro in Microsoft Excel. If you have not set your version of Excel to allow Macro's you will see the yellow section on all calculators and get an error message when you click Verify Data. We recommend you Click OK and change your settings in Options (Usually in a ribbon near the top of the screen) to allow Macro's. If you do not change your settings it does not alter the calculations but this section will remain visible on the calculator whether you are required to complete it or not. If it changes to grey you do not need to complete it; if it remains yellow you will need to complete it.
A25: Step 1 | B25: Enter the Borrowers name in the box provided, the date should pre-fill to todays date for you.
A27: Step 2 | B27: Enter the SMSF Income and other assets details. We have deemed a 3.9% per annum return on other assests in the SMSF and have taken into account; Annual Rental Income and contributions to the SMSF should be entered.
A29: Step 3 | B29: Enter the SMSF Existing Commitments. This will only be if they have other SMSF loans. This section is broken into two parts: Debt/Limit; and Monthly Payment. Please ensure you complete both of these sections. A sensitivity of 2.0% will be factored into the overall calcuation of these commitments to ensure the clients can afford the repayments when their existing commitment rates fluctuate.
A33: Step 4 | B33: Enter the proposed loan amount, interest rate and loan term. The calculator will automatically give you the monthly repayment, and again will factor in a 2.0% sensitivity as above. Please note, the calculator works on a Principal & Interest basis only, for Interest Only loans please refer to an Underwriter.
A36: Step 5 | B36: Press the Verify Data button next to the maximum loan amount. If there is not sufficient capacity to service the loan from the SMSF a further section will appear in yellow which should be completed. This will enable us to take into account the income and expenditure of the beneficiaries of the SMSF to support the servicing of the loan application
A40: Step 6 | B40: Enter the number of Single Adults, Couples and their Children in the Living Allowance section. A living allowance will automatically be calculated for you.
A42: Step 7 | B42: Enter the Applicants Income details. We have provided for both Taxable and Non-Taxable income; Annual Rental Income and income derived from a Company seperately, please ensure you separate the income correctly and do not include them twice.
A45: Step 8 | B45: Enter the applicants Existing Commitments. This section is broken into two parts: Debt/Limit; and Monthly Payment. Please ensure you complete both of these sections. A sensitivity of 2.0% will be factored into the overall calcuation of these commitments to ensure the clients can afford the repayments when their existing commitment rates fluctuate.
A49: We trust these hints will allow you to provide a suitable service to your clients. If you require any detailed assistance please call your BDM.

Sheet Lease Doc Intro (hidden)
A1: Lease Doc Serviceability Calculator Instructions
A2: Welcome to our Lease Doc Calculator. The Calculator has been developed utilising current guidelines and attempts to provide a balanced assessment of a Lease Doc clients borrowing capacity.
A6: The Lease Doc calculator is available only for Commercial facilites and requires the rental return on an individual Commercial security to return a 120% debt coverage ratio over the particular asset. Should your clients return a result greater than 1.20%, the proposal may proceed.
A11: Introduction
A12: There are three tabs within this worksheet:
A14: Introduction (this sheet)
A15: Serviceability Calculator
A16: Definitions
A18: How to use the Calculator
A20: Step 1 | B20: Enter the Borrowers name in the box provided, the date should pre-fill to todays date for you.
A22: Step 2 | B22: Enter the proposed loan amount, interest rate and loan term. Please note, the Lease Doc product is only available for Interest Only facilities.
A25: Step 3 | B25: Enter the rental income available for the property as evidenced by the Commercial Lease over the security property and any rental statements available.
A28: We trust these hints will allow you to provide a suitable service to your clients. If you require any detailed assistance please call your BDM.

Sheet Non Res Introduction (hidden)
A1: Non-resident Serviceability Calculator Instructions
A3: Introduction
A5: Welcome to our non-resident Serviceability Calculator. The Calculator has been developed utilising current guidelines and attempts to provide a balanced assessment of non-resident clients borrowing capacity.
A9: The Serviceability Calculator incorporates formulas to calculate clients Net Incomes, mortgage repayments and includes built in sensitivity for variance in interest rates to ensure clients can afford repayments when rates change upward by 2.0% and meets out required Debt Serviceability Ratio requirements.
A14: Introduction
A15: There are three tabs within this worksheet:
A17: Introduction (this sheet)
A18: Serviceability Calculator
A19: Definitions
A21: How to use the Calculator
A23: Step 1 | B23: Enter the Borrowers name in the box provided, the date should pre-fill to todays date for you.
A25: Step 2 | B25: Enter the applicants country of residence and the current exchange rate for the local currency.
A27: Step 3 | B27: Enter the number of Single Adults, Couples and their Children in the Living Allowance section. A living allowance will automatically be calculated for you.
A30: Step 4 | B30: Enter the Applicants Income details. We have separated foreign income sources from Australian income sources. Please ensure that income is not entered under both Australian and Foreign Income. Gross income and Net income is required to be entered for foreign income sources. Foreign income is to be expressed as its local currency amount. The calculator will automatically convert the amount. Please enter annual rental income seperately, please ensure you separate the income correctly and do not include them twice.
A33: Step 5 | B33: Enter the applicants Existing Commitments. Foreign and Australian Commitments have been separated. Please enter foreign debts and committments expressed in their local currency. The calculator will automatically convery currency amounts. Existing Australian debts and committments are to be expressed as Australian dollars. This section is broken into two parts: Debt/Limit; and Monthly Payment. Please ensure you complete both of these sections but do not enter the same debts as both foreign currency and AUD.
A37: Step 6 | B37: Enter the proposed loan amount, interest rate and loan term. The calculator will automatically give you the monthly repayment, factor in a 2.0% sensitivity. Please note, the calculator works on a Principal & Interest basis only, for Interest Only loans please refer to an Underwriter.
A41: We trust these hints will allow you to provide a suitable service to your clients. If you require any detailed assistance please call your La Trobe BDM.

Sheet Serviceability Calculator (hidden)
A1: Serviceability Calculator
C3: Date: | E3: =TODAY() -> 2019-08-01
A4: Prospector number:
A5: Applicants Name(s): | H5: Your clients name please
B7: Number
A8: Single Adults | B8: 0 | C8: =B8*'Living Allow'!G6 -> 0 | H8: Input number of adults and children
A9: Couples | B9: 0 | C9: =B9*'Living Allow'!G7 -> 0
A10: Children | B10: 0 | C10: =B10*'Living Allow'!G8 -> 0
C11: =SUM(C8:C10) -> 0
A13: Income | B13: Gross Annual Income | C13: Gross Income - Taxable | D13: Gross Income - Non-taxable | E13: Net Monthly Income
A14: Applicant 1 - (Taxable) Income | B14: 0 | C14: =B14+C30-D14 -> 0 | D14: =E30*12 -> 0 | E14: ='Tax Scales'!$J$14+(D14/12) -> 0 | H14: Input applicants income
A15: Applicant 2 - (Taxable) Income | B15: 0 | C15: =B15+C31-D15 -> 0 | D15: =E31*12 -> 0 | E15: ='Tax Scales'!$J$27+(D15/12) -> 0
A16: Applicant 3 - (Taxable) Income | B16: 0 | C16: =B16+C32-D16 -> 0 | D16: 0 | E16: ='Tax Scales'!$J$40+(D16/12) -> 0
A17: Applicant 4 - (Taxable) Income | B17: 0 | C17: =B17+C33-D17 -> 0 | D17: 0 | E17: ='Tax Scales'!$J$53+(D17/12) -> 0
E18: =SUM(E14:E17) -> 0
A20: Applicant 1 (Non-Taxable) Income | B20: 0 | C20: =B20/12 -> 0 | E20: =C20 -> 0
A21: Applicant 2 (Non-Taxable) Income | B21: 0 | C21: 0 | E21: =C21 -> 0
E22: =SUM(E20:E21) -> 0
A24: Company 1 (Net Profit Before Tax) | B24: 0 | C24: =B24/12 -> 0 | E24: ='Tax Scales'!$J$83 -> 0
A25: Company 2 (Net Profit Before Tax) | B25: 0 | C25: =B25/12 -> 0 | E25: ='Tax Scales'!$J$90 -> 0
E26: =SUM(E24:E25) -> 0
A29: Rental Property Income | B29: Gross Annual Income | C29: Gross Annual Income - less haircut | E29: Monthly Interest Expense (for gearing purposes only)
A30: Applicant 1 - Annual Rental Income(s) | B30: 0 | C30: =B30*RepayCalculator!$B$43 -> 0 | E30: 0
A31: Applicant 2 - Annual Rental Income(s) | B31: 0 | C31: =B31*RepayCalculator!$B$43 -> 0 | E31: 0
A32: Applicant 3 - Annual Rental Income(s) | B32: 0 | C32: =B32*RepayCalculator!$B$43 -> 0 | E32: 0
A33: Applicant 4 - Annual Rental Income(s) | B33: 0 | C33: =B33*RepayCalculator!$B$43 -> 0 | E33: 0
A35: Total Income | B35: =SUM(B14:B17)+SUM(B20:B21)+SUM(B24:B25)+SUM(B30:B33) -> 0 | C35: =SUM(C14:C30) -> 0 | E35: =+E18+E22+E26 -> 0
A37: Less Living Allowance
H38: Input applicants expenses. All items must be completed.
A39: Basic Living Expenses | B39: 0 | H39: Where an amount is $0 or not in line with the applicants
A40: Communication Expenses | B40: 0 | H40: circumstances, further explanation is required.
A41: Education Expenses | B41: 0
A42: Insurance Expenses | B42: 0 | E42: =IF(B45<E49,"WARNING - The monthly living expenses are below benchmark. Detailed explanation required","") -> 
A43: Utilities / Rates | B43: 0 | E43: =IF(B45>C11*0.95,IF(B45<C11*1.05,"WARNING - Declared living expenses are within 5% of benchmark. Detailed review of living expenses required",""),"") -> 
A44: Other Expenses | B44: 0
A45: Monthly Living Expenses | B45: =SUM(B39:B44) -> 0
A46: Child Support | B46: 0
A47: Rent / Board | B47: 0
A49: Living Expense Used (> of HPI or Actual) | E49: =IF(C11>B45,C11,B45) -> 0
A50: Rent, Board and Child Support | E50: =SUM($B$46:$B$47) -> 0
A51: Total Expenses | E51: =E49+E50 -> 0
A53: Total income available for debt & housing servicing | E53: =E35-E51 -> 0
A55: Less Existing Commitments | B55: Debt / Limit | E55: Monthly Pmt
A56: Credit Card (Limit not debt) | B56: 0 | E56: =B56*0.038 -> 0 | H56: Please list all outstanding credit commitments
A57: Personal Loan (variable) | B57: 0 | E57: 0 | H57: remaining after this mortgage settles
A58: Personal Loan (fixed) | B58: 0 | E58: 0
A59: Overdraft | B59: 0 | E59: 0
A60: Housing Loan Variable - Owner Occupied | B60: 0 | E60: 0
A61: Housing Loan Variable - Investment | B61: 0 | E61: 0
A62: Lease / HP | B62: 0 | E62: 0
A63: Other | B63: 0 | E63: 0
A65: Total Existing Commitments | C65: =SUM(B59:B61)+B57 -> 0 | E65: =SUM(E56:E63) -> 0
A67: New Loan Commitment
A68: Repayment Type | B68: Principal & Interest | H68: Select repayment type and enter loan amount
A69: New Loan Term (Years) | B69: 0 | H69: interest rate and loan term (in years)
A70: Interest Only Term (Years) | B70: 0
A71: New Loan Amount | B71: 0
A72: Interest Rate of New Loan | B72: 0
A73: New Monthly Loan Repayment/s | E73: =IF(B68="Principal & Interest",-PMT(B72/12,(B69-B70)*12,B71,0,0),B71*B72/12) -> 
A75: Net Disposable Income | E75: =E53-E65-E73 -> 
A77: Loan Assessment Rate (minimum 5.5%) | B77: =IF(B72+RepayCalculator!B6>RepayCalculator!B8,B72+RepayCalculator!B6,RepayCalculator!B8) -> 0.055
A79: Serviceability Stress Test
A80: minus Existing Commitment Sensitivity (2.0%) | E80: =(C65*(RepayCalculator!B6))/12 -> 0
A81: ="minus New Loan Commitment Sensitivity (2.0%)" -> minus New Loan Commitment Sensitivity (2.0%) | E81: =IF(B68=RepayCalculator!A2,(-PMT((B77)/12,(B69-B70)*12,B71,0,0)-E73),(B77*B71/12)-E73) -> 
A83: Result - Must Be Positive | E83: =E75-E80-E81 -> 
A84: Debt to Income Ratio | E84: =(SUM(B56:B63)+B71)/B35 -> 
A86: Maximum Loan Available - Principal & Interest loans only | E86: =IF(B68="Principal & Interest",FLOOR(-PV((B77)/12,(B69-B70)*12,(E53-E65-E80),0,0),100),"N/A") -> 0 | F86: =((E53-E65-E80)/(B72+1.7%)*12) -> 0
A88: I certify that we have made the proper enquiries and to the best of our knowledge the above information is correct.
A91: Signature | B91: Name | E91: Date
A95: ='Living Allow'!E11 -> Version Date: 1 August 2019

Sheet NDI DTI Output (hidden)
A1: Prospector Number | B1: ='Serviceability Calculator'!B4 -> 0
A2: Serviceability calculator type | B2: NDI
A3: Applicant 1 Normal Income | B3: ='Serviceability Calculator'!B14+'Serviceability Calculator'!B20 -> 0
A4: Applicant 2 Normal Income | B4: ='Serviceability Calculator'!B15+'Serviceability Calculator'!B21 -> 0
A5: Applicant 3 Normal Income | B5: ='Serviceability Calculator'!B16 -> 0
A6: Applicant 4 Normal Income | B6: ='Serviceability Calculator'!B17 -> 0
A7: Applicant 1 Rental Income | B7: ='Serviceability Calculator'!B30 -> 0
A8: Applicant 2 Rental Income | B8: ='Serviceability Calculator'!B31 -> 0
A9: Applicant 3 Rental Income | B9: ='Serviceability Calculator'!B32 -> 0
A10: Applicant 4 Rental Income | B10: ='Serviceability Calculator'!B33 -> 0
A11: Applicant 1 Company Income | B11: ='Serviceability Calculator'!B24 -> 0
A12: Applicant 2 Company Income | B12: ='Serviceability Calculator'!B25 -> 0
A13: Applicant 3 Company Income | B13: N/A
A14: Applicant 4 Company Income | B14: N/A
A15: Total Annual Gross Income | B15: ='Serviceability Calculator'!B35 -> 0
A16: Declared monthly living expenses | B16: ='Serviceability Calculator'!B45 -> 0
A17: Benchmark monthly living expenses | B17: ='Serviceability Calculator'!C11 -> 0
A18: Rent / Board | B18: ='Serviceability Calculator'!B47 -> 0
A19: Child Support | B19: ='Serviceability Calculator'!B46 -> 0
A20: Credit Card Debt | B20: ='Serviceability Calculator'!B56 -> 0
A21: Personal Loan Debt | B21: =SUM('Serviceability Calculator'!B57:B58) -> 0
A22: Overdraft Debt | B22: ='Serviceability Calculator'!B59 -> 0
A23: Housing Loan Debt | B23: =SUM('Serviceability Calculator'!B60:B61) -> 0
A24: Lease / Other Debt | B24: =SUM('Serviceability Calculator'!B62:B63) -> 0
A25: Credit Card Payment | B25: ='Serviceability Calculator'!E56 -> 0
A26: Personal Loan Payment | B26: =SUM('Serviceability Calculator'!E57:E58) -> 0
A27: Overdraft Payment | B27: ='Serviceability Calculator'!E59 -> 0
A28: Housing Loan Payment | B28: =SUM('Serviceability Calculator'!E60:E61) -> 0
A29: Lease / Other Payment | B29: =SUM('Serviceability Calculator'!E62:E63) -> 0
A30: Loan Assessment Rate | B30: ='Serviceability Calculator'!B77 -> 0.055
A31: Serviceability Result | B31: ='Serviceability Calculator'!E83 -> 
A32: Debt-to-Income Ratio | B32: ='Serviceability Calculator'!E84 -> 

Sheet SMSF Serviceability Calculator (hidden)
A1: SMSF Serviceability Calculator
C3: Date: | E3: =TODAY() -> 2019-08-01
A4: Prospector number:
A5: Applicants Name(s): | H5: Your clients name please
B7: Number
A8: SMSF income and contributions
A9: SMSF (Other Assets) | B9: 0
A10: Income From Other Assets | B10: =B9*3.9% -> 0 | C10: =B10/12 -> 0 | E10: ='Tax Scales'!$Y$98 -> 0
A12: Superannuation Contributions - Applicant 1 | B12: 0 | C12: =B12/12 -> 0 | E12: ='Tax Scales'!Y106 -> 0
A13: Superannuation Contributions - Applicant 2 | B13: 0 | E13: ='Tax Scales'!Y114 -> 0
A14: Superannuation Contributions - Applicant 3 | B14: 0 | E14: ='Tax Scales'!Y122 -> 0
A15: Superannuation Contributions - Applicant 4 | B15: 0 | E15: ='Tax Scales'!Y130 -> 0
E16: =SUM($E$12:$E$15) -> 0
A18: Annual Rental Income(s) | B18: 0 | C18: =B18/12 -> 0 | E18: =C18*RepayCalculator!B44 -> 0
A20: Total Income | B20: =SUM(B10:B15)+B18 -> 0 | C20: =SUM(C10:C18) -> 0 | E20: =E10+E16+E18 -> 0
A22: Less Existing SMSF Commitments | B22: Debt / Limit | E22: Monthly Pmt
A23: Other loans | B23: 0 | D23: 0 | E23: 0
A24: Annual management fee (min. $1,500 automatically assumed) | B24: 0 | C24: =B24/12 -> 0 | E24: =IF(C24>C25,C24,C25) -> 125
C25: =1500/12 -> 125
A26: Total Existing Commitments | C26: =SUM(B23:B23) -> 0 | E26: =SUM(E23:F24) -> 125
A28: New SMSF Loan Commitment
A29: Repayment Type | B29: Principal & Interest | H29: Select repayment type and enter loan amount
A30: New Loan Term (Years) | B30: 0 | H30: interest rate and loan term (in years)
A31: Interest Only Term (Years) | B31: 0
A32: New SMSF Loan Amount | B32: 0
A33: Interest Rate of New Loan | B33: 0
A34: New Monthly SMSF Loan Repayment/s | E34: =IF(B29="Principal & Interest",-PMT(B33/12,(B30-B31)*12,B32,0,0),B32*B33/12) -> 
A36: Net Disposable Income | E36: =E20-E26-E34 -> 
A38: Loan Assessment Rate (minimum 5.5%) | B38: =IF(B33+RepayCalculator!B6>RepayCalculator!B8,B33+RepayCalculator!B6,RepayCalculator!B8) -> 0.055
A40: Serviceability Stress Test
A41: minus Existing Commitment Sensitivity (2.0%) | E41: =(C26*(RepayCalculator!B6))/12 -> 0
A42: ="minus New Loan Commitment Sensitivity (2.0%)" -> minus New Loan Commitment Sensitivity (2.0%) | E42: =IF(B29=RepayCalculator!A2,(-PMT((B38)/12,(B30-B31)*12,B32,0,0)-E34),(B38*B32/12)-E34) -> 
A44: Result - Must Be Positive | E44: =IFERROR(E36-E41-E42,0) -> 0
A46: Maximum Loan Available - Principal & Interest loans only | E46: =IF(B29="Principal & Interest",FLOOR(-PV((B38)/12,(B30-B31)*12,(E20-E26-E41),0,0),100),"N/A") -> 0 | F46: =FLOOR(-PV((C33+0.015)/12,C30*12,(F102-F27),0,0),100) -> 0
A48: Single Adults | B48: 0 | C48: =B48*'Living Allow'!G6 -> 0 | H48: Input number of adults and children
A49: Couples | B49: 0 | C49: =B49*'Living Allow'!G7 -> 0
A50: Children | B50: 0 | C50: =B50*'Living Allow'!G8 -> 0
C51: =SUM(C48:C50) -> 0
A53: Income | B53: Gross Annual Income | C53: Gross Income - Taxable | D53: Gross Income - Non-taxable | E53: Net Monthly Income
A54: Applicant 1 - (Taxable) Income | B54: 0 | C54: =B54+C69-D54 -> 0 | D54: =E69*12 -> 0 | E54: ='Tax Scales'!Y14+(D54/12) -> 0 | H54: Input applicants income
A55: Applicant 2 - (Taxable) Income | B55: 0 | C55: =B55+C70-D55 -> 0 | D55: =E70*12 -> 0 | E55: ='Tax Scales'!Y27+(D55/12) -> 0
A56: Applicant 3 - (Taxable) Income | B56: 0 | C56: 0 | D56: 0 | E56: ='Tax Scales'!Y40+(D56/12) -> 0
A57: Applicant 4 - (Taxable) Income | B57: 0 | C57: 0 | D57: 0 | E57: ='Tax Scales'!Y53+(D57/12) -> 0
E58: =SUM(E54:E57) -> 0
A60: Applicant 1 (Non-Taxable) Income | B60: 0 | C60: =B60/12 -> 0 | E60: =C60 -> 0
A61: Applicant 2 (Non-Taxable) Income | B61: 0 | C61: 0 | E61: =C61 -> 0
E62: =SUM(E60:E61) -> 0
A64: Company 1 (Net Profit Before Tax) | B64: 0 | C64: =B64/12 -> 0 | E64: ='Tax Scales'!Y83 -> 0
A65: Company 2 (Net Profit Before Tax) | B65: 0 | C65: =B65/12 -> 0 | E65: ='Tax Scales'!Y90 -> 0
E66: =SUM(E64:E65) -> 0
A68: Rental Property Income | B68: Gross Annual Income | C68: Gross Annual Income - less haircut | E68: Monthly Interest Expense (for gearing purposes only)
A69: Applicant 1 - Annual Rental Income(s) | B69: 0 | C69: =B69*RepayCalculator!$B$44 -> 0 | E69: 0
A70: Applicant 2 - Annual Rental Income(s) | B70: 0 | C70: =B70*RepayCalculator!$B$44 -> 0 | E70: 0
A71: Applicant 3 - Annual Rental Income(s) | B71: 0 | C71: =B71*RepayCalculator!$B$44 -> 0 | E71: 0
A72: Applicant 4 - Annual Rental Income(s) | B72: 0 | C72: =B72*RepayCalculator!$B$44 -> 0 | E72: 0
A74: Total Income | B74: =SUM(B54:B57)+SUM(B60:B61)+SUM(B64:B65)+SUM(B69:B72) -> 0 | C74: =SUM(C54:C69) -> 0 | E74: =+E58+E62+E66 -> 0
A76: Less Living Allowance
A77: Monthly Living Expenses | B77: 0
A79: Living Expense Used (> of HPI or Actual) | E79: =IF(C51>B77,C51,B77) -> 0
A81: Total income available for debt & housing servicing | E81: =E74-E79 -> 0
A83: Less Existing Commitments | B83: Debt / Limit | E83: Monthly Pmt
A84: Credit Card (Limit not debt) | B84: 0 | E84: =B84*3.8% -> 0 | H84: Please list all outstanding credit commitments
A85: Personal Loan (variable) | B85: 0 | E85: 0 | H85: remaining after this mortgage settles
A86: Personal Loan (fixed) | B86: 0 | E86: 0
A87: Overdraft | B87: 0 | E87: 0
A88: Housing Loan Variable - Owner Occupied | B88: 0 | E88: 0
A89: Housing Loan Variable - Investment | B89: 0 | E89: 0
A90: Lease / HP | B90: 0 | E90: 0
A91: Other | B91: 0 | E91: 0
A92: Child Support | E92: 0
A93: Rent / Board | E93: 0
A95: Total Existing Commitments | C95: =SUM(B87:B91)+B85 -> 0 | E95: =SUM(E84:E93) -> 0
A97: Serviceability Stress Test
A98: minus Existing Commitment Sensitivity (2%) | E98: =(C95*(RepayCalculator!B6))/12 -> 0
A101: Result - Must Be Positive | E101: =E44+E81-E95-E98 -> 0
A102: Result - Debt to Income Ratio (DTI) | E102: =(B23+B32+SUM(B84:B91))/(B20+B74) -> 
A104: I certify that we have made the proper enquires and to the best of our knowledge the above information is correct.
A107: Signature | B107: Name | E107: Date
A111: ='Living Allow'!E11 -> Version Date: 1 August 2019
E93000: 0

Sheet SMSF DTI Output (hidden)
A1: Prospector Number | B1: ='SMSF Serviceability Calculator'!B4 -> 0
A2: Serviceability calculator type | B2: SMSF
A3: Applicant 1 Normal Income | B3: ='SMSF Serviceability Calculator'!B54+'SMSF Serviceability Calculator'!B60 -> 0
A4: Applicant 2 Normal Income | B4: ='SMSF Serviceability Calculator'!B55+'SMSF Serviceability Calculator'!B61 -> 0
A5: Applicant 3 Normal Income | B5: ='SMSF Serviceability Calculator'!B56 -> 0
A6: Applicant 4 Normal Income | B6: ='SMSF Serviceability Calculator'!B57 -> 0
A7: Applicant 1 Rental Income | B7: ='SMSF Serviceability Calculator'!B69 -> 0
A8: Applicant 2 Rental Income | B8: ='SMSF Serviceability Calculator'!B70 -> 0
A9: Applicant 3 Rental Income | B9: ='SMSF Serviceability Calculator'!B71 -> 0
A10: Applicant 4 Rental Income | B10: ='SMSF Serviceability Calculator'!B72 -> 0
A11: Applicant 1 Company Income | B11: ='SMSF Serviceability Calculator'!B64 -> 0
A12: Applicant 2 Company Income | B12: ='SMSF Serviceability Calculator'!B65 -> 0
A13: Applicant 3 Company Income | B13: N/A
A14: Applicant 4 Company Income | B14: N/A
A15: Total Annual Gross Income | B15: ='SMSF Serviceability Calculator'!B74 -> 0
A16: Declared monthly living expenses | B16: ='SMSF Serviceability Calculator'!B77 -> 0
A17: Benchmark monthly living expenses | B17: ='SMSF Serviceability Calculator'!C51 -> 0
A18: Rent / Board | B18: ='SMSF Serviceability Calculator'!E93 -> 0
A19: Child Support | B19: ='SMSF Serviceability Calculator'!E92 -> 0
A20: Credit Card Debt | B20: ='SMSF Serviceability Calculator'!B84 -> 0
A21: Personal Loan Debt | B21: ='SMSF Serviceability Calculator'!B85+'SMSF Serviceability Calculator'!B86 -> 0
A22: Overdraft Debt | B22: ='SMSF Serviceability Calculator'!B87 -> 0
A23: Housing Loan Debt | B23: ='SMSF Serviceability Calculator'!B88+'SMSF Serviceability Calculator'!B89+'SMSF Serviceability Calculator'!B23 -> 0
A24: Lease / Other Debt | B24: ='SMSF Serviceability Calculator'!B90+'SMSF Serviceability Calculator'!B91 -> 0
A25: Credit Card Payment | B25: ='SMSF Serviceability Calculator'!E84 -> 0
A26: Personal Loan Payment | B26: ='SMSF Serviceability Calculator'!E85+'SMSF Serviceability Calculator'!E86 -> 0
A27: Overdraft Payment | B27: ='SMSF Serviceability Calculator'!E87 -> 0
A28: Housing Loan Payment | B28: ='SMSF Serviceability Calculator'!E88+'SMSF Serviceability Calculator'!E89+'SMSF Serviceability Calculator'!E23 -> 0
A29: Lease / Other Payment | B29: ='SMSF Serviceability Calculator'!E90+'SMSF Serviceability Calculator'!E91 -> 0
A30: Loan Assessment Rate | B30: ='SMSF Serviceability Calculator'!B38 -> 0.055
A31: Serviceability Result | B31: ='SMSF Serviceability Calculator'!E101 -> 0
A32: Debt-to-Income Ratio | B32: ='SMSF Serviceability Calculator'!E102 -> 
A33: SMSF Contributions | B33: ='SMSF Serviceability Calculator'!B12+'SMSF Serviceability Calculator'!B13+'SMSF Serviceability Calculator'!B14+'SMSF Serviceability Calculator'!B15 -> 0
A34: SMSF Rental | B34: ='SMSF Serviceability Calculator'!B18 -> 0
A35: SMSF Investment Income | B35: ='SMSF Serviceability Calculator'!B10 -> 0

Sheet Non-Res Serviceability (hidden)
A1: Non-resident Serviceability Calculator
G3: Date: | I3: =TODAY() -> 2019-08-01
A4: Prospector number:
A5: Applicants Name(s): | L5: Your clients name please
A7: Country of Residence | B7: China | L7: Your clients country of residence
A8: Foreign Currency | B8: =VLOOKUP(B7,'Living Allow'!$E$20:$G$128,3,FALSE) -> CNY - China Yuan Renminbi
A9: Foreign Currency Exchange Rate - www.xe.com | B9: 0
B11: Number
A12: Single Adults | B12: 0 | C12: =B12*'Living Allow'!G6*($G$45/'Living Allow'!$F$17)*1.1 -> 0 | L12: Input number of adults and children
A13: Couples | B13: 0 | C13: =B13*'Living Allow'!G7*($G$45/'Living Allow'!$F$17)*1.1 -> 0
A14: Children | B14: 0 | C14: =B14*'Living Allow'!G8*($G$45/'Living Allow'!$F$17)*1.1 -> 0
A15: Total Borrowers | B15: =B12+(B13*2) -> 0
C16: =SUM(C12:C14) -> 0
B17: 0
A18: Income | B18: Gross Annual Foreign Income | D18: Net Annual Foreign Income | F18: Australian Gross Annual Income | G18: Australian Gross Income - Taxable | H18: Australian Gross Income - Non Taxable | I18: Total Net Monthly Income
A19: Applicant 1 - Income | B19: 0 | D19: 0 | F19: 0 | G19: =F19+G34-H19 -> 0 | H19: =I34*12 -> 0 | I19: ='Tax Scales'!$AN$14+(H19/12)+(($D19/12)*$B$9*0.9)+((D34/12)*$B$9*0.9) -> 0 | L19: Input applicants income
A20: Applicant 2 - Income | B20: 0 | D20: 0 | F20: 0 | G20: =F20+G35-H20 -> 0 | H20: =I35*12 -> 0 | I20: ='Tax Scales'!$AN$27+(H20/12)+(($D20/12)*$B$9*0.9)+((D35/12)*$B$9*0.9) -> 0 | L20: NOTES:- 1. Foreign currency is automatically converted to AUD once an exchange rate is entered - no need to manually convert any income to AUD. 2. "Australian Gross Income" is to be used for income derived in Australia only. Not to be used for conversion of Foreign Income. 3. For Foreign Income, both Gross and Net Income figures are required to be entered manually.
A21: Applicant 3 - Income | B21: 0 | D21: 0 | F21: 0 | G21: 0 | H21: 0 | I21: ='Tax Scales'!$AN$40+(H21/12)+(($D21/12)*$B$9*0.9)+((D36/12)*$B$9*0.9) -> 0
A22: Applicant 4 - Income | B22: 0 | D22: 0 | F22: 0 | G22: 0 | H22: 0 | I22: ='Tax Scales'!$AN$53+(H22/12)+(($D22/12)*$B$9*0.9)+((D37/12)*$B$9*0.9) -> 0
H23: 0 | I23: =SUM(I19:I22) -> 0
H24: 0
A25: Applicant 1 Income | B25: 0 | D25: 0 | F25: 0 | G25: =F25/12 -> 0 | H25: 0 | I25: =G25+(($D25/12)*$B$9*0.9) -> 0
A26: Applicant 2 Income | B26: 0 | D26: 0 | F26: 0 | G26: 0 | H26: 0 | I26: =G26+(($D26/12)*$B$9*0.9) -> 0
H27: 0 | I27: =SUM(I25:I26) -> 0
A29: Company 1 Profit | B29: 0 | D29: 0 | F29: 0 | G29: =F29/12 -> 0 | I29: ='Tax Scales'!$AN$83+(($D29/12)*$B$9*0.9) -> 0
A30: Company 2 Profit | B30: 0 | D30: 0 | F30: 0 | G30: =F30/12 -> 0 | I30: ='Tax Scales'!$AN$90+(($D30/12)*$B$9*0.9) -> 0
I31: =SUM(I29:I30) -> 0
B33: Gross Annual Income - Foreign Rentals | D33: Net Annual Income - Foreign Rentals | F33: Gross Annual Income - Australian Rentals | G33: Gross Annual Income - Australian Rentals (less haircut) | I33: Monthly Interest Expense - Australian Rentals (for gearing purposes only)
A34: Applicant 1 - Annual Rental Income(s) | B34: 0 | D34: =B34*RepayCalculator!$B$43 -> 0 | F34: 0 | G34: =F34*RepayCalculator!$B$43 -> 0 | I34: 0
A35: Applicant 2 - Annual Rental Income(s) | B35: 0 | D35: =B35*RepayCalculator!$B$43 -> 0 | F35: 0 | G35: =F35*RepayCalculator!$B$43 -> 0 | I35: 0
A36: Applicant 3 - Annual Rental Income(s) | B36: 0 | D36: =B36*RepayCalculator!$B$43 -> 0 | F36: 0 | G36: =F36*RepayCalculator!$B$43 -> 0 | I36: 0
A37: Applicant 4 - Annual Rental Income(s) | B37: 0 | D37: =B37*RepayCalculator!$B$43 -> 0 | F37: 0 | G37: =F37*RepayCalculator!$B$43 -> 0 | I37: 0
A39: Total | B39: =SUM(B19:B22,B29:B30)+(SUM(B34:B37)*RepayCalculator!$B$43) -> 0 | D39: =SUM(D19:D22,D29:D30,D34:D37) -> 0 | F39: =SUM(F19:F22,F29:F30,G34:G37) -> 0 | G39: =SUM(G19:G34) -> 0
A40: Total Gross Income | I40: =((B39/12)*B9*0.9)+(SUM(F19:F22,F29:F30,G34:G37)/12) -> 0
A41: Total Net Income | I41: =+I23+I31 -> 0
A43: Less Living Allowance | D43: Monthly Living Expenses (Foreign Currency) | E43: OR | F43: Monthly Living Expenses (AUD)
A44: Monthly Living Expenses (complete in AUD or O/S Currency) | D44: 0 | F44: 0 | G44: =(D44*$B$9*1.1)+(F44*1.1) -> 0 | L44: Input applicants declared living expenses
G45: =VLOOKUP($B$7,'Living Allow'!$E$19:$F$128,2,FALSE) -> 40.54 | L45: NOTE: For foreign Living Expenses, please enter the foreign currency amount. Conversion to AUD will take place automatically.
A46: Living Expense Used (> of HPI or Actual) | I46: =IF(C16>G44,C16,G44) -> 0
A48: Total income available for debt & housing servicing | I48: =I41-I46 -> 0
A50: Less Existing Commitments | B50: Foreign Currency Debt / Limit | D50: Foreign Currency Monthly Pmt | F50: Australian Debt / Limit | I50: Australian Monthly Pmt
A51: Credit Card (Limit not debt) | B51: 0 | D51: =B51*3.8% -> 0 | F51: 0 | I51: =(F51*3.8%) -> 0 | L51: Please list all outstanding credit commitments
A52: Personal Loan (variable) | B52: 0 | D52: 0 | F52: 0 | H52: 0 | I52: 0 | L52: remaining after this mortgage settles
A53: Personal Loan (fixed) | B53: 0 | D53: 0 | F53: 0 | H53: 0 | I53: 0 | L53: NOTES:- 1. Foreign debts and repayment amounts are to be entered in the applicable foreign currency. Conversion to AUD will take place automatically. Australian debts are to be entered in AUD.
A54: Overdraft | B54: 0 | D54: 0 | F54: 0 | H54: 0 | I54: 0
A55: Housing Loan Variable - Owner Occupied | B55: 0 | D55: 0 | F55: 0 | H55: 0 | I55: 0
A56: Housing Loan Variable - Investment | B56: 0 | D56: 0 | F56: 0 | H56: 0 | I56: 0
A57: Lease / HP | B57: 0 | D57: 0 | F57: 0 | H57: 0 | I57: 0
A58: Other | B58: 0 | D58: 0 | F58: 0 | H58: 0 | I58: 0
A59: Child Support | D59: 0 | H59: 0 | I59: 0
A60: Rent / Board | D60: 0 | H60: 0 | I60: 0
A62: Total | C62: =SUM(B54:B56)+B52 -> 0 | D62: =SUM(D51:D60) -> 0 | G62: =SUM(F54:F56)+F52 -> 0 | I62: =SUM(I51:I60) -> 0
A64: Total Commitments - AUD | G64: =G62 -> 0 | I64: =I62 -> 0
A65: Total Commitments - Foreign Currency | G65: =$C$62*B9 -> 0 | I65: =$D$62*$B$9 -> 0
A66: Total Net Commitments | G66: =SUM(G64:G65) -> 0 | I66: =SUM(I64:I65) -> 0
A68: New Loan Commitment
A69: Repayment Type | F69: Principal & Interest | L69: Select repayment type and enter loan amount
A70: New Loan Term (Years) | F70: 0 | L70: interest rate and loan term (in years)
A71: Interest Only Term (Years) | F71: 0
A72: New Loan Amount | F72: 0
A73: Interest Rate of New Loan | F73: 0
A74: New Monthly Loan Repayment/s | I74: =IF(F69="Principal & Interest",-PMT(F73/12,(F70-F71)*12,F72,0,0),F72*F73/12) -> 
A76: Net Disposable Income | I76: =I48-I66-I74 -> 
A78: Loan Assessment Rate (minimum 5.5%) | F78: =IF(F73+RepayCalculator!B6>RepayCalculator!B8,F73+RepayCalculator!B6,RepayCalculator!B8) -> 0.055
A80: Serviceability Stress Test
A81: minus Existing Commitment Sensitivity (2.0%) | I81: =(G66*(RepayCalculator!B6))/12 -> 0
A82: ="minus New Loan Commitment Sensitivity (2.0%)" -> minus New Loan Commitment Sensitivity (2.0%) | I82: =IF(F69=RepayCalculator!A2,(-PMT((F78)/12,(F70-F71)*12,F72,0,0)-I74),(F78*F72/12)-I74) -> 
A84: Total Expenses | I84: =I82+I81+I74+I66 -> 
A86: Test 1 - Must Be Positive | F86: =IF(I86>0,"PASS","FAIL") ->  | I86: =I76-I81-I82 ->  | L86: NOTES: All applications must meet both tests. Please refer to La Trobe Financial for any queries.
A87: =IF(B15=1,"Test 2 - Must NOT exceed 40%","Test 2 - Must NOT exceed 35%") -> Test 2 - Must NOT exceed 35% | F87: =IF(I87>P87,"FAIL","PASS") ->  | I87: =I84/I40 ->  | P87: =IF(B15=1,0.4,0.35) -> 0.35
A88: Overall Result | I88: =IF(F86="PASS",IF(F87="PASS","PASS","FAIL"),"FAIL") -> 
A89: Debt to income Ratio | I89: =((SUM(B51:B58)*B9)+SUM(F51:F58)+F72)/((SUM(B19:B22,B29,B29:B30,B34:B37)*B9)+SUM(F19:F22,F29:F30,F34:F37)) -> 
A90: Maximum Loan Available - Principal & Interest loans only | I90: =IF(F69="Principal & Interest",FLOOR(-PV((F78)/12,(F70-F71)*12,(I48-I62-I81),0,0),100),"N/A") -> 0 | J90: =((I48-I62-I81)/(F73+1.7%)*12) -> 0
A92: I certify that we have made the proper enquiries and to the best of our knowledge the above information is correct.
A95: Signature | F95: Name | I95: Date
A99: ='Living Allow'!E11 -> Version Date: 1 August 2019

Sheet Non-res DTI Output (hidden)
A1: Prospector Number | B1: ='Non-Res Serviceability'!B4 -> 0
A2: Serviceability calculator type | B2: NRL
A3: Applicant 1 Normal Income | B3: =('Non-Res Serviceability'!B19*'Non-Res Serviceability'!$B$9)+'Non-Res Serviceability'!F19 -> 0
A4: Applicant 2 Normal Income | B4: =('Non-Res Serviceability'!B20*'Non-Res Serviceability'!$B$9)+'Non-Res Serviceability'!F20 -> 0
A5: Applicant 3 Normal Income | B5: =('Non-Res Serviceability'!B21*'Non-Res Serviceability'!$B$9)+'Non-Res Serviceability'!F21 -> 0
A6: Applicant 4 Normal Income | B6: =('Non-Res Serviceability'!B22*'Non-Res Serviceability'!$B$9)+'Non-Res Serviceability'!F22 -> 0
A7: Applicant 1 Rental Income | B7: =('Non-Res Serviceability'!B34*'Non-Res Serviceability'!$B$9)+'Non-Res Serviceability'!F34 -> 0
A8: Applicant 2 Rental Income | B8: =('Non-Res Serviceability'!B35*'Non-Res Serviceability'!$B$9)+'Non-Res Serviceability'!F35 -> 0
A9: Applicant 3 Rental Income | B9: =('Non-Res Serviceability'!B36*'Non-Res Serviceability'!$B$9)+'Non-Res Serviceability'!F36 -> 0
A10: Applicant 4 Rental Income | B10: =('Non-Res Serviceability'!B37*'Non-Res Serviceability'!$B$9)+'Non-Res Serviceability'!F37 -> 0
A11: Applicant 1 Company Income | B11: =('Non-Res Serviceability'!B29*'Non-Res Serviceability'!$B$9)+'Non-Res Serviceability'!F29 -> 0
A12: Applicant 2 Company Income | B12: =('Non-Res Serviceability'!B30*'Non-Res Serviceability'!$B$9)+'Non-Res Serviceability'!F30 -> 0
A13: Applicant 3 Company Income | B13: N/A
A14: Applicant 4 Company Income | B14: N/A
A15: Total Annual Gross Income | B15: =SUM(B3:B12) -> 0
A16: Declared monthly living expenses | B16: ='Non-Res Serviceability'!G44 -> 0
A17: Benchmark monthly living expenses | B17: ='Non-Res Serviceability'!C16 -> 0
A18: Rent / Board | B18: =('Non-Res Serviceability'!D60*'Non-Res Serviceability'!$B$9)+'Non-Res Serviceability'!I60 -> 0
A19: Child Support | B19: =('Non-Res Serviceability'!D59*'Non-Res Serviceability'!$B$9)+'Non-Res Serviceability'!I59 -> 0
A20: Credit Card Debt | B20: =('Non-Res Serviceability'!B51*'Non-Res Serviceability'!$B$9)+'Non-Res Serviceability'!F51 -> 0
A21: Personal Loan Debt | B21: =(SUM('Non-Res Serviceability'!B52:B53)*'Non-Res Serviceability'!$B$9)+SUM('Non-Res Serviceability'!F52:F53) -> 0
A22: Overdraft Debt | B22: =('Non-Res Serviceability'!B54*'Non-Res Serviceability'!$B$9)+'Non-Res Serviceability'!F54 -> 0
A23: Housing Loan Debt | B23: =(SUM('Non-Res Serviceability'!B55:B56)*'Non-Res Serviceability'!$B$9)+SUM('Non-Res Serviceability'!F55:F56) -> 0
A24: Lease / Other Debt | B24: =(SUM('Non-Res Serviceability'!B57:B58)*'Non-Res Serviceability'!B9)+SUM('Non-Res Serviceability'!F57:F58) -> 0
A25: Credit Card Payment | B25: =('Non-Res Serviceability'!D51*'Non-Res Serviceability'!$B$9)+'Non-Res Serviceability'!I51 -> 0
A26: Personal Loan Payment | B26: =(SUM('Non-Res Serviceability'!D52:D53)*'Non-Res Serviceability'!$B$9)+SUM('Non-Res Serviceability'!I52:I53) -> 0
A27: Overdraft Payment | B27: =('Non-Res Serviceability'!D54*'Non-Res Serviceability'!$B$9)+'Non-Res Serviceability'!I54 -> 0
A28: Housing Loan Payment | B28: =(SUM('Non-Res Serviceability'!D55:D56)*'Non-Res Serviceability'!$B$9)+SUM('Non-Res Serviceability'!I55:I56) -> 0
A29: Lease / Other Payment | B29: =(SUM('Non-Res Serviceability'!D57:D58)*'Non-Res Serviceability'!$B$9)+SUM('Non-Res Serviceability'!I57:I58) -> 0
A30: Loan Assessment Rate | B30: ='Non-Res Serviceability'!F78 -> 0.055
A31: Serviceability Result | B31: ='Non-Res Serviceability'!I86 -> 
A32: Debt-to-Income Ratio | B32: ='Non-Res Serviceability'!I89 -> 

Sheet Lease Doc Serviceability Calc (hidden)
A1: Lease Doc Serviceability Calculator
C3: Date: | D3: =TODAY() -> 2019-08-01
A4: Prospector number:
A5: Applicants Name(s): | G5: Your clients name please
A7: New Loan Commitment
A8: Repayment Type | B8: Principal & Interest
A9: Loan Term | B9: 0
A10: Interest Only Term | B10: 0
A11: New Loan Amount | B11: 0 | G11: Enter loan amount and interest rate
A12: Interest Rate of New Loan | B12: 0
A13: Assessment Rate of Loan (minimum 5.50%) | B13: =IF(B12+RepayCalculator!B6>RepayCalculator!B8,B12+RepayCalculator!B6,RepayCalculator!B8) -> 0.055
A14: New Monthly Loan Repayment/s | B14: =IF(B8="Principal & Interest",-PMT(B12/12,(B9-B10)*12,B11,0,0)+15,(B11*B12)/12+15) -> 
A15: add Sensitivity adjustment (2% with minimum rate of 5.5%) | B15: =IF(B8="Principal & Interest",-PMT(B13/12,(B9-B10)*12,B11,0,0)+15,(B11*B13)/12+15)-B14 -> 
A16: Total Stressed Monthly Payment | B16: =SUM(B14:B15) -> 
A17: New Annual Loan Repayment/s | D17: =B16*12 -> 
A19: Monthly Rental Income | B19: 0 | G19: Enter Monthly Rental Income
A20: Annual Rental Income | D20: =B19*12 -> 0
A22: Result - Must Exceed 1.2 | B22: 1.2 | D22: =ROUND(D20/D17,2) -> 
A24: Maximum Loan Available | D24: =ROUND((((D20-180)/B22)/B12),-2) -> 
A27: I certify that we have made the proper enquires and to the best of our knowledge the above information is correct.
A30: Signature | B30: Name | D30: Date
A34: ='Living Allow'!E11 -> Version Date: 1 August 2019

Sheet Lease Doc DTI Output (hidden)
A1: Prospector Number | B1: ='Lease Doc Serviceability Calc'!B4 -> 0
A2: Serviceability calculator type | B2: Lease Doc
A3: Applicant 1 Normal Income | B3: 0
A4: Applicant 2 Normal Income | B4: 0
A5: Applicant 3 Normal Income | B5: 0
A6: Applicant 4 Normal Income | B6: 0
A7: Applicant 1 Rental Income | B7: ='Lease Doc Serviceability Calc'!D20 -> 0
A8: Applicant 2 Rental Income | B8: 0
A9: Applicant 3 Rental Income | B9: 0
A10: Applicant 4 Rental Income | B10: 0
A11: Applicant 1 Company Income | B11: 0
A12: Applicant 2 Company Income | B12: 0
A13: Applicant 3 Company Income | B13: 0
A14: Applicant 4 Company Income | B14: 0
A15: Total Annual Gross Income | B15: =B7 -> 0
A16: Declared monthly living expenses | B16: 0
A17: Benchmark monthly living expenses | B17: 0
A18: Rent / Board | B18: 0
A19: Child Support | B19: 0
A20: Credit Card Debt | B20: 0
A21: Personal Loan Debt | B21: 0
A22: Overdraft Debt | B22: 0
A23: Housing Loan Debt | B23: 0
A24: Lease / Other Debt | B24: 0
A25: Credit Card Payment | B25: 0
A26: Personal Loan Payment | B26: 0
A27: Overdraft Payment | B27: 0
A28: Housing Loan Payment | B28: 0
A29: Lease / Other Payment | B29: 0
A30: Loan Assessment Rate | B30: ='Lease Doc Serviceability Calc'!B13 -> 0.055
A31: Serviceability Result | B31: ='Lease Doc Serviceability Calc'!D22 -> 
A32: Debt-to-Income Ratio | B32: ='Lease Doc Serviceability Calc'!B11/B7 -> 

Sheet Living Allow (hidden)
C3: Single | D3: Joint | E3: Living Allowance Calculation
B5: 0 | C5: =#REF! ->  | D5: =#REF! ->  | F5: $ per Week | G5: $ per Month
B6: 999 | C6: =#REF! ->  | D6: =#REF! ->  | E6: Single | F6: 356.39 | G6: =F6*52/12 -> 1544.356667
B7: 1499 | C7: =#REF! ->  | D7: =#REF! ->  | E7: Couples | F7: 518.13 | G7: =F7*52/12 -> 2245.23
B8: 1999 | C8: =#REF! ->  | D8: =#REF! ->  | E8: Children | F8: 489.48 | G8: =(F8-F6)*52/12 -> 576.7233333
B9: 2499 | C9: =#REF! ->  | D9: =#REF! -> 
B10: 2999 | C10: =#REF! ->  | D10: =#REF! -> 
B11: 3499 | C11: =#REF! ->  | D11: =#REF! ->  | E11: Version Date: 1 August 2019
B12: 3999 | C12: =#REF! ->  | D12: =#REF! -> 
B13: 4499 | C13: =#REF! ->  | D13: =#REF! -> 
B14: 4999 | C14: =#REF! ->  | D14: =#REF! ->  | E14: HPI Data Date - March 2019
B15: 5499 | C15: =#REF! ->  | D15: =#REF! ->  | E15: Cost of Living Data Date - June 2019
B16: 5999 | C16: =#REF! ->  | D16: =#REF! -> 
B17: 6499 | C17: =#REF! ->  | D17: =#REF! ->  | E17: Australia | F17: 73.39
B18: 6999 | C18: =#REF! ->  | D18: =#REF! -> 
B19: 7499 | C19: =#REF! ->  | D19: =#REF! ->  | E19: Country | F19: Cost of Living Index
B20: 7999 | C20: =#REF! ->  | D20: =#REF! ->  | E20: Albania | F20: 36.63 | G20: ALL - Albania Lek
B21: 8499 | C21: =#REF! ->  | D21: =#REF! ->  | E21: Algeria | F21: 30.54 | G21: DZD - Algeria Dinar
B22: 8999 | C22: =#REF! ->  | D22: =#REF! ->  | E22: Argentina | F22: 38.72 | G22: ARS - Argentina Peso
B23: 9499 | C23: =#REF! ->  | D23: =#REF! ->  | E23: Armenia | F23: 32.7 | G23: AMD - Armenia Dram
B24: 9999 | C24: =#REF! ->  | D24: =#REF! ->  | E24: Australia | F24: 73.39 | G24: AUD - Australia Dollar
B25: 10499 | C25: =#REF! ->  | D25: =#REF! ->  | E25: Austria | F25: 72.15 | G25: EUR - Euro Member Countries
B26: 10999 | C26: =#REF! ->  | D26: =#REF! ->  | E26: Azerbaijan | F26: 29.81 | G26: AZN - Azerbaijan New Manat
B27: 11499 | C27: =#REF! ->  | D27: =#REF! ->  | E27: Bahamas | F27: 85.96 | G27: BSD - Bahamas Dollar
B28: 11999 | C28: =#REF! ->  | D28: =#REF! ->  | E28: Bahrain | F28: 58.36 | G28: BHD - Bahrain Dinar
B29: 12499 | C29: =#REF! ->  | D29: =#REF! ->  | E29: Bangladesh | F29: 32.62 | G29: BDT - Bangladesh Taka
B30: 12999 | C30: =#REF! ->  | D30: =#REF! ->  | E30: Belarus | F30: 33.02 | G30: BYN - Belarus Ruble
B31: 13499 | C31: =#REF! ->  | D31: =#REF! ->  | E31: Belgium | F31: 73.13 | G31: EUR - Euro Member Countries
B32: 14499 | C32: =#REF! ->  | D32: =#REF! ->  | E32: Bolivia | F32: 34.07 | G32: BOB - Bolivia Bolíviano
B33: 14999 | C33: =#REF! ->  | D33: =#REF! ->  | E33: Bosnia and Herzegovina | F33: 36.19 | G33: BAM - Bosnia and Herzegovina Convertible Marka
B34: 15499 | C34: =#REF! ->  | D34: =#REF! ->  | E34: Brazil | F34: 42.64 | G34: BRL - Brazil Real
B35: 15999 | C35: =#REF! ->  | D35: =#REF! ->  | E35: Bulgaria | F35: 37.37 | G35: BGN - Bulgaria Lev
B36: 16499 | C36: =#REF! ->  | D36: =#REF! ->  | E36: Cambodia | F36: 47.82 | G36: KHR - Cambodia Riel
B37: 16999 | C37: =#REF! ->  | D37: =#REF! ->  | E37: Canada | F37: 68.16 | G37: CAD - Canada Dollar
B38: 17499 | C38: =#REF! ->  | D38: =#REF! ->  | E38: Chile | F38: 49.15 | G38: CLP - Chile Peso
B39: 17999 | C39: =#REF! ->  | D39: =#REF! ->  | E39: China | F39: 40.54 | G39: CNY - China Yuan Renminbi
B40: 18499 | C40: =#REF! ->  | D40: =#REF! ->  | E40: Colombia | F40: 30.25 | G40: COP - Colombia Peso
B41: 18999 | C41: =#REF! ->  | D41: =#REF! ->  | E41: Costa Rica | F41: 55.09 | G41: CRC - Costa Rica Colon
B42: 19499 | C42: =#REF! ->  | D42: =#REF! ->  | E42: Croatia | F42: 50.05 | G42: HRK - Croatia Kuna
E43: Cyprus | F43: 58.39 | G43: EUR - Euro Member Countries
E44: Czech Republic | F44: 45.7 | G44: CZK - Czech Republic Koruna
E45: Denmark | F45: 83.88 | G45: DKK - Denmark Krone
E46: Dominican Republic | F46: 46.17 | G46: DOP - Dominican Republic Peso
E47: Ecuador | F47: 41.99 | G47: USD - United States Dollar
E48: Egypt | F48: 29.09 | G48: EGP - Egypt Pound
E49: El Salvador | F49: 47.69 | G49: SVC - El Salvador Colon
E50: Estonia | F50: 50.99 | G50: EUR - Euro Member Countries
E51: Finland | F51: 72.18 | G51: EUR - Euro Member Countries
E52: France | F52: 74.62 | G52: EUR - Euro Member Countries
E53: Georgia | F53: 27.78 | G53: GEL - Georgia Lari
E54: Germany | F54: 66.57 | G54: EUR - Euro Member Countries
E55: Ghana | F55: 43.11 | G55: GHS - Ghana Cedi
E56: Greece | F56: 56.72 | G56: EUR - Euro Member Countries
B57: 19999 | C57: =#REF! ->  | D57: =#REF! ->  | E57: Guatemala | F57: 43.04 | G57: GTQ - Guatemala Quetzal
E58: Honduras | F58: 42.34 | G58: HNL - Honduras Lempira
E59: Hong Kong | F59: 79.21 | G59: HKD - Hong Kong Dollar
E60: Hungary | F60: 41.7 | G60: HUF - Hungary Forint
E61: Iceland | F61: 97.22 | G61: ISK - Iceland Krona
E62: India | F62: 25.14 | G62: INR - India Rupee
E63: Indonesia | F63: 36.86 | G63: IDR - Indonesia Rupiah
E64: Iran | F64: 41.39 | G64: IRR - Iran Rial
E65: Iraq | F65: 39.84 | G65: IQD - Iraq Dinar
E66: Ireland | F66: 76.33 | G66: EUR - Euro Member Countries
E67: Israel | F67: 79.54 | G67: ILS - Israel Shekel
E68: Italy | F68: 69.02 | G68: EUR - Euro Member Countries
E69: Jamaica | F69: 56.44 | G69: JMD - Jamaica Dollar
E70: Japan | F70: 85.52 | G70: JPY - Japan Yen
E71: Jordan | F71: 55.36 | G71: JOD - Jordan Dinar
E72: Kazakhstan | F72: 30.06 | G72: KZT - Kazakhstan Tenge
E73: Kenya | F73: 39.26 | G73: KES - Kenya Shilling
E74: Kuwait | F74: 50.33 | G74: KWD - Kuwait Dinar
E75: Latvia | F75: 49.55 | G75: EUR - Euro Member Countries
E76: Lebanon | F76: 59.74 | G76: LBP - Lebanon Pound
E77: Lithuania | F77: 45.41 | G77: EUR - Euro Member Countries
E78: Luxembourg | F78: 84.68 | G78: EUR - Euro Member Countries
E79: Macedonia | F79: 32.27 | G79: MKD - Macedonia Denar
E80: Malaysia | F80: 39.46 | G80: MYR - Malaysia Ringgit
E81: Malta | F81: 65.43 | G81: EUR - Euro Member Countries
E82: Mauritius | F82: 51.6 | G82: MUR - Mauritius Rupee
E83: Mexico | F83: 34.29 | G83: MXN - Mexico Peso
E84: Moldova | F84: 32.63 | G84: MDL - Moldova Leu
E85: Montenegro | F85: 39.37 | G85: EUR - Euro Member Countries
E86: Morocco | F86: 34.59 | G86: MAD - Morocco Dirham
E87: Nepal | F87: 30.69 | G87: NPR - Nepal Rupee
E88: Netherlands | F88: 75.22 | G88: ANG - Netherlands Antilles Guilder
E89: New Zealand | F89: 73.01 | G89: NZD - New Zealand Dollar
E90: Nigeria | F90: 31.75 | G90: NGN - Nigeria Naira
E91: Norway | F91: 104.49 | G91: NOK - Norway Krone
E92: Oman | F92: 48.55 | G92: OMR - Oman Rial
E93: Pakistan | F93: 18.58 | G93: PKR - Pakistan Rupee
E94: Palestinian territory | F94: 52.99 | G94: JOD - Jordan Dinar
E95: Panama | F95: 52.98 | G95: PAB - Panama Balboa
E96: Peru | F96: 38.82 | G96: PEN - Peru Sol
E97: Philippines | F97: 36.97 | G97: PHP - Philippines Peso
E98: Poland | F98: 39.38 | G98: PLN - Poland Zloty
E99: Portugal | F99: 50.77 | G99: EUR - Euro Member Countries
E100: Puerto Rico | F100: 66.81 | G100: USD - United States Dollar
E101: Qatar | F101: 62.22 | G101: QAR - Qatar Riyal
E102: Romania | F102: 36.07 | G102: RON - Romania New Leu
E103: Russia | F103: 38.59 | G103: RUB - Russia Ruble
E104: Saudi Arabia | F104: 48.71 | G104: SAR - Saudi Arabia Riyal
E105: Serbia | F105: 36.3 | G105: RSD - Serbia Dinar
E106: Singapore | F106: 80.23 | G106: SGD - Singapore Dollar
E107: Slovakia | F107: 44.65 | G107: EUR - Euro Member Countries
E108: Slovenia | F108: 54.17 | G108: EUR - Euro Member Countries
E109: South Africa | F109: 43.74 | G109: ZAR - South Africa Rand
E110: South Korea | F110: 75.16 | G110: KRW - Korea (South) Won
E111: Spain | F111: 54.74 | G111: EUR - Euro Member Countries
E112: Sri Lanka | F112: 32.95 | G112: LKR - Sri Lanka Rupee
E113: Sweden | F113: 70.11 | G113: SEK - Sweden Krona
E114: Switzerland | F114: 122.67 | G114: CHF - Switzerland Franc
E115: Taiwan | F115: 58.77 | G115: TWD - Taiwan New Dollar
E116: Tanzania | F116: 35.07 | G116: TZS - Tanzania Shilling
E117: Thailand | F117: 49.86 | G117: THB - Thailand Baht
E118: Tunisia | F118: 25.43 | G118: TND - Tunisia Dinar
E119: Turkey | F119: 35.66 | G119: TRY - Turkey Lira
E120: Uganda | F120: 31.72 | G120: UGX - Uganda Shilling
E121: Ukraine | F121: 30.94 | G121: UAH - Ukraine Hryvnia
E122: United Arab Emirates | F122: 63.58 | G122: AED - United Arab Emirates Dirham
E123: United Kingdom | F123: 65.33 | G123: GBP - United Kingdom Pound
E124: United States | F124: 70.95 | G124: USD - United States Dollar
E125: Uruguay | F125: 54.91 | G125: UYU - Uruguay Peso
E126: Venezuela | F126: 27.22 | G126: VEF - Venezuela Bolivar
E127: Vietnam | F127: 38.17 | G127: VND - Viet Nam Dong
E128: Zimbabwe | F128: 54.72 | G128: ZWD - Zimbabwe Dollar

Sheet Tax Scales (hidden)
A1: Annual Salary Guide - Standard | P1: Annual Salary Guide - SMSF | AE1: Annual Salary Guide - Non Resident
A2: Tax Scales | P2: Tax Scales | AE2: Tax Scales
A3: Applicant 1 | P3: Applicant 1 | AE3: Applicant 1
A4: Gross Taxable Income | D4: Tax Rate | F4: Gross | H4: Tax | J4: Net | L4: Flood Levy Calculations | P4: Gross Taxable Income | S4: Tax Rate | U4: Gross | W4: Tax | Y4: Net | AA4: Flood Levy Calculations | AE4: Gross Taxable Income | AH4: Tax Rate | AJ4: Gross | AL4: Tax | AN4: Net | AP4: Flood Levy Calculations
A5: 1 | B5: 18200 | C5: =B5-A5+1 -> 18200 | D5: 0 | F5: =IF('Serviceability Calculator'!C14<B5,'Serviceability Calculator'!C14,C5) -> 0 | G5: =F5 -> 0 | H5: =F5*D5 -> 0 | J5: =F5-H5 -> 0 | P5: =A5 -> 1 | Q5: 18200 | R5: =C5 -> 18200 | S5: =D5 -> 0 | U5: =IF('SMSF Serviceability Calculator'!C54<Q5,'SMSF Serviceability Calculator'!C54,R5) -> 0 | V5: =U5 -> 0 | W5: =U5*S5 -> 0 | Y5: =U5-W5 -> 0 | AE5: -1000000 | AF5: 0 | AG5: 0 | AH5: 0 | AJ5: =IF('Non-Res Serviceability'!G19<AF5,'Non-Res Serviceability'!G19,AG5) -> 0 | AK5: =AJ5 -> 0 | AL5: =AJ5*AH5 -> 0 | AN5: =AJ5-AL5 -> 0
A6: 18201 | B6: 37000 | C6: =B6-A6+1 -> 18800 | D6: 0.19 | F6: =IF(G5='Serviceability Calculator'!C14,0,IF(('Serviceability Calculator'!C14-G5)>C6,C6,('Serviceability Calculator'!C14-G5))) -> 0 | G6: =G5+F6 -> 0 | H6: =F6*D6 -> 0 | J6: =F6-H6 -> 0 | P6: 18201 | Q6: 37000 | R6: =C6 -> 18800 | S6: 0.19 | U6: =IF(V5='SMSF Serviceability Calculator'!$C$54,0,IF(('SMSF Serviceability Calculator'!$C$54-V5)>R6,R6,('SMSF Serviceability Calculator'!$C$54-V5))) -> 0 | V6: =V5+U6 -> 0 | W6: =U6*S6 -> 0 | Y6: =U6-W6 -> 0 | AE6: 1 | AF6: 90000 | AG6: =AF6-AE6+1 -> 90000 | AH6: 0.325 | AJ6: =IF(AK5='Non-Res Serviceability'!G19,0,IF(('Non-Res Serviceability'!G19-0)>AG6,AG6,('Non-Res Serviceability'!G19-0))) -> 0 | AK6: =AK5+AJ6 -> 0 | AL6: =AJ6*AH6 -> 0 | AN6: =AJ6-AL6 -> 0
A7: 37001 | B7: 90000 | C7: =B7-A7+1 -> 53000 | D7: 0.325 | F7: =IF(G6='Serviceability Calculator'!C14,0,IF(('Serviceability Calculator'!C14-G6)>C7,C7,('Serviceability Calculator'!C14-G6))) -> 0 | G7: =G6+F7 -> 0 | H7: =F7*D7 -> 0 | J7: =F7-H7 -> 0 | L7: =IF(F7>13000,(F7-13000)*0.5%,0) -> 0 | P7: 37001 | Q7: 90000 | R7: 53000 | S7: 0.325 | U7: =IF(V6='SMSF Serviceability Calculator'!$C$54,0,IF(('SMSF Serviceability Calculator'!$C$54-V6)>R7,R7,('SMSF Serviceability Calculator'!$C$54-V6))) -> 0 | V7: =V6+U7 -> 0 | W7: =U7*S7 -> 0 | Y7: =U7-W7 -> 0 | AA7: =IF(U7>13000,(U7-13000)*0.5%,0) -> 0 | AE7: 90001 | AF7: 180000 | AG7: =AF7-AE7+1 -> 90000 | AH7: 0.37 | AJ7: =IF(AK6='Non-Res Serviceability'!G19,0,IF(('Non-Res Serviceability'!G19-AK6)>AG7,AG7,('Non-Res Serviceability'!G19-AK6))) -> 0 | AK7: =AK6+AJ7 -> 0 | AL7: =AJ7*AH7 -> 0 | AN7: =AJ7-AL7 -> 0 | AP7: =IF(AJ7>13000,(AJ7-13000)*0.5%,0) -> 0
A8: 90001 | B8: 180000 | C8: =B8-A8+1 -> 90000 | D8: 0.37 | F8: =IF(G7='Serviceability Calculator'!C14,0,IF(('Serviceability Calculator'!C14-G7)>C8,C8,('Serviceability Calculator'!C14-G7))) -> 0 | G8: =G7+F8 -> 0 | H8: =F8*D8 -> 0 | J8: =F8-H8 -> 0 | L8: =SUM(M8:N8) -> 0 | M8: =IF(F8<=20000,F8*0.5%,0) -> 0 | N8: =IF(F8>20000,((F8-20000)*1%)+100,0) -> 0 | P8: 90001 | Q8: 180000 | R8: 90000 | S8: 0.37 | U8: =IF(V7='SMSF Serviceability Calculator'!$C$54,0,IF(('SMSF Serviceability Calculator'!$C$54-V7)>R8,R8,('SMSF Serviceability Calculator'!$C$54-V7))) -> 0 | V8: =V7+U8 -> 0 | W8: =U8*S8 -> 0 | Y8: =U8-W8 -> 0 | AA8: =SUM(AB8:AC8) -> 0 | AB8: =IF(U8<=20000,U8*0.5%,0) -> 0 | AC8: =IF(U8>20000,((U8-20000)*1%)+100,0) -> 0 | AE8: 180000 | AF8: 10000000 | AG8: =AF8-AE8+1 -> 9820001 | AH8: 0.45 | AJ8: =IF(AK7='Non-Res Serviceability'!G19,0,IF(('Non-Res Serviceability'!G19-AK7)>AG8,AG8,('Non-Res Serviceability'!G19-AK7))) -> 0 | AK8: =AK7+AJ8 -> 0 | AL8: =AJ8*AH8 -> 0 | AN8: =AJ8-AL8 -> 0 | AP8: =SUM(AQ8:AR8) -> 0 | AQ8: =IF(AJ8<=20000,AJ8*0.5%,0) -> 0 | AR8: =IF(AJ8>20000,((AJ8-20000)*1%)+100,0) -> 0
A9: 180001 | B9: 10000000 | C9: =B9-A9+1 -> 9820000 | D9: 0.45 | F9: =IF('Serviceability Calculator'!C14-G8<=0,0,('Serviceability Calculator'!C14-G8)) -> 0 | G9: =G8+F9 -> 0 | H9: =F9*D9 -> 0 | J9: =F9-H9 -> 0 | L9: =F9*1% -> 0 | P9: 180001 | Q9: 10000000 | R9: 9820000 | S9: 0.45 | U9: =IF(V8='SMSF Serviceability Calculator'!$C$54,0,IF(('SMSF Serviceability Calculator'!$C$54-V8)>R9,R9,('SMSF Serviceability Calculator'!$C$54-V8))) -> 0 | V9: =V8+U9 -> 0 | W9: =U9*S9 -> 0 | Y9: =U9-W9 -> 0 | AA9: =U9*1% -> 0 | AE9: 10000001 | AF9: 20000000 | AG9: =AF9-AE9+1 -> 10000000 | AH9: 0.45 | AJ9: =IF('Non-Res Serviceability'!G19-AK8<=0,0,('Non-Res Serviceability'!G19-AK8)) -> 0 | AK9: =AK8+AJ9 -> 0 | AL9: =AJ9*AH9 -> 0 | AN9: =AJ9-AL9 -> 0 | AP9: =AJ9*1% -> 0
D10: Totals: | F10: =SUM(F5:F9) -> 0 | H10: =SUM(H5:H9) -> 0 | J10: =SUM(J5:J9) -> 0 | L10: =SUM(L7:L9) -> 0 | S10: Totals: | U10: =SUM(U5:U9) -> 0 | W10: =SUM(W5:W9) -> 0 | Y10: =SUM(Y5:Y9) -> 0 | AA10: =SUM(AA7:AA9) -> 0 | AH10: Totals: | AJ10: =IF('Non-Res Serviceability'!$G$19<0,SUM(AJ5:AJ9),SUM(AJ6:AJ9)) -> 0 | AL10: =SUM(AL5:AL9) -> 0 | AN10: =SUM(AN5:AN9) -> 0 | AP10: =SUM(AP7:AP9) -> 0
A11: Low & middle income tax offset (monthly) | C11: =IF($F$10<=$B$97,$D$97,(IF($F$10<=$B$98,$D$98,IF($F$10<=$B$99,(($F$10-$B$98)*$C$99)+$D$99,IF($F$10<=$B$100,$D$100,IF($F$10<=$B$101,(($F$10-$B$100)*$C$101)+$D$101,IF($F$10<=$B$102,$D$102,0)))))))/12 -> 0 | D11: Refer table | P11: Low & middle income tax offset (monthly) | R11: =IF($U$10<=$B$97,$D$97,(IF($U$10<=$B$98,$D$98,IF($U$10<=$B$99,(($U$10-$B$98)*$C$99)+$D$99,IF($U$10<=$B$100,$D$100,IF($U$10<=$B$101,(($U$10-$B$100)*$C$101)+$D$101,IF($U$10<=$B$102,$D$102,0)))))))/12 -> 0 | S11: Refer table | AE11: Budget Repair Levy (monthly) | AG11: 0 | AH11: N/A
A12: Low income tax offset (monthly) | C12: =IF($F$10<=$B$109,$D$109,IF($F$10<=$B$110,$D$110,IF($F$10<=$B$111,(($F$10-$B$110)*$C$111)+$D$111,IF($F$10<=$B$112,$D$112,0))))/12 -> 0 | D12: Refer table | P12: Low income tax offset (monthly) | R12: =IF($U$10<=$B$109,$D$109,IF($U$10<=$B$110,$D$110,IF($U$10<=$B$111,(($U$10-$B$110)*$C$111)+$D$111,IF($U$10<=$B$112,$D$112,0))))/12 -> 0 | S12: Refer table
A13: Medicare Levy (monthly) | C13: =F10*(2/100)/12 -> 0 | D13: 0.02 | P13: Medicare Levy (monthly) | R13: =U10*(2/100)/12 -> 0 | S13: 0.02 | AE13: Medicare Levy (monthly) | AG13: 0 | AH13: N/A
C14: =SUM(C11:C13) -> 0 | H14: Monthly | J14: =(J10/12)-C14 -> 0 | R14: =SUM(R11:R13) -> 0 | W14: Monthly | Y14: =(Y10/12)-R14 -> 0 | AG14: =SUM(AG11:AG13) -> 0 | AL14: Monthly | AN14: =(AN10/12)-AG14 -> 0
A16: Applicant 2 | P16: Applicant 2 | AE16: Applicant 2
A17: Gross Taxable Income | D17: Tax Rate | F17: Gross | H17: Tax | J17: Net | P17: Gross Taxable Income | S17: Tax Rate | U17: Gross | W17: Tax | Y17: Net | AE17: Gross Taxable Income | AH17: Tax Rate | AJ17: Gross | AL17: Tax | AN17: Net
A18: =A5 -> 1 | B18: =B5 -> 18200 | C18: =C5 -> 18200 | D18: =D5 -> 0 | F18: =IF('Serviceability Calculator'!C15<B18,'Serviceability Calculator'!C15,C18) -> 0 | G18: =F18 -> 0 | H18: =F18*D18 -> 0 | J18: =F18-H18 -> 0 | P18: =A18 -> 1 | Q18: 18200 | R18: =C18 -> 18200 | S18: =D18 -> 0 | U18: =IF('SMSF Serviceability Calculator'!C55<Q18,'SMSF Serviceability Calculator'!C55,R18) -> 0 | V18: =U18 -> 0 | W18: =U18*S18 -> 0 | Y18: =U18-W18 -> 0 | AE18: =AE5 -> -1000000 | AF18: =AF5 -> 0 | AG18: =AG5 -> 0 | AH18: =AH5 -> 0 | AJ18: =IF('Non-Res Serviceability'!G20<AF18,'Non-Res Serviceability'!G20,AG18) -> 0 | AK18: =AJ18 -> 0 | AL18: =AJ18*AH18 -> 0 | AN18: =AJ18-AL18 -> 0
A19: =A6 -> 18201 | B19: 37000 | C19: 18800 | D19: 0.19 | F19: =IF(G18='Serviceability Calculator'!C15,0,IF(('Serviceability Calculator'!C15-G18)>C19,C19,('Serviceability Calculator'!C15-G18))) -> 0 | G19: =G18+F19 -> 0 | H19: =F19*D19 -> 0 | J19: =F19-H19 -> 0 | P19: 18201 | Q19: 37000 | R19: 18800 | S19: 0.19 | U19: =IF(V18='SMSF Serviceability Calculator'!$C$55,0,IF(('SMSF Serviceability Calculator'!$C$55-V18)>R19,R19,('SMSF Serviceability Calculator'!$C$55-V18))) -> 0 | V19: =V18+U19 -> 0 | W19: =U19*S19 -> 0 | Y19: =U19-W19 -> 0 | AE19: =AE6 -> 1 | AF19: 90000 | AG19: 90000 | AH19: 0.325 | AJ19: =IF(AK18='Non-Res Serviceability'!G20,0,IF(('Non-Res Serviceability'!G20-AK18)>AG19,AG19,('Non-Res Serviceability'!G20-AK18))) -> 0 | AK19: =AK18+AJ19 -> 0 | AL19: =AJ19*AH19 -> 0 | AN19: =AJ19-AL19 -> 0
A20: =A7 -> 37001 | B20: 90000 | C20: 53000 | D20: 0.325 | F20: =IF(G19='Serviceability Calculator'!C15,0,IF(('Serviceability Calculator'!C15-G19)>C20,C20,('Serviceability Calculator'!C15-G19))) -> 0 | G20: =G19+F20 -> 0 | H20: =F20*D20 -> 0 | J20: =F20-H20 -> 0 | L20: =IF(F20>13000,(F20-13000)*0.5%,0) -> 0 | P20: 37001 | Q20: 90000 | R20: 53000 | S20: 0.325 | U20: =IF(V19='SMSF Serviceability Calculator'!$C$55,0,IF(('SMSF Serviceability Calculator'!$C$55-V19)>R20,R20,('SMSF Serviceability Calculator'!$C$55-V19))) -> 0 | V20: =V19+U20 -> 0 | W20: =U20*S20 -> 0 | Y20: =U20-W20 -> 0 | AA20: =IF(U20>13000,(U20-13000)*0.5%,0) -> 0 | AE20: =AE7 -> 90001 | AF20: 180000 | AG20: 90000 | AH20: 0.37 | AJ20: =IF(AK19='Non-Res Serviceability'!G20,0,IF(('Non-Res Serviceability'!G20-AK19)>AG20,AG20,('Non-Res Serviceability'!G20-AK19))) -> 0 | AK20: =AK19+AJ20 -> 0 | AL20: =AJ20*AH20 -> 0 | AN20: =AJ20-AL20 -> 0 | AP20: =IF(AJ20>13000,(AJ20-13000)*0.5%,0) -> 0
A21: =A8 -> 90001 | B21: 180000 | C21: 90000 | D21: 0.37 | F21: =IF(G20='Serviceability Calculator'!C15,0,IF(('Serviceability Calculator'!C15-G20)>C21,C21,('Serviceability Calculator'!C15-G20))) -> 0 | G21: =G20+F21 -> 0 | H21: =F21*D21 -> 0 | J21: =F21-H21 -> 0 | L21: =SUM(M21:N21) -> 0 | M21: =IF(F21<=20000,F21*0.5%,0) -> 0 | N21: =IF(F21>20000,((F21-20000)*1%)+100,0) -> 0 | P21: 90001 | Q21: 180000 | R21: 90000 | S21: 0.37 | U21: =IF(V20='SMSF Serviceability Calculator'!$C$55,0,IF(('SMSF Serviceability Calculator'!$C$55-V20)>R21,R21,('SMSF Serviceability Calculator'!$C$55-V20))) -> 0 | V21: =V20+U21 -> 0 | W21: =U21*S21 -> 0 | Y21: =U21-W21 -> 0 | AA21: =SUM(AB21:AC21) -> 0 | AB21: =IF(U21<=20000,U21*0.5%,0) -> 0 | AC21: =IF(U21>20000,((U21-20000)*1%)+100,0) -> 0 | AE21: =AE8 -> 180000 | AF21: 10000000 | AG21: 9820001 | AH21: 0.45 | AJ21: =IF(AK20='Non-Res Serviceability'!G20,0,IF(('Non-Res Serviceability'!G20-AK20)>AG21,AG21,('Non-Res Serviceability'!G20-AK20))) -> 0 | AK21: =AK20+AJ21 -> 0 | AL21: =AJ21*AH21 -> 0 | AN21: =AJ21-AL21 -> 0 | AP21: =SUM(AQ21:AR21) -> 0 | AQ21: =IF(AJ21<=20000,AJ21*0.5%,0) -> 0 | AR21: =IF(AJ21>20000,((AJ21-20000)*1%)+100,0) -> 0
A22: =A9 -> 180001 | B22: 10000000 | C22: 9820000 | D22: 0.45 | F22: =IF('Serviceability Calculator'!C15-G21<=0,0,('Serviceability Calculator'!C15-G21)) -> 0 | G22: =G21+F22 -> 0 | H22: =F22*D22 -> 0 | J22: =F22-H22 -> 0 | L22: =F22*1% -> 0 | P22: 180001 | Q22: 10000000 | R22: 9820000 | S22: 0.45 | U22: =IF(V21='SMSF Serviceability Calculator'!$C$55,0,IF(('SMSF Serviceability Calculator'!$C$55-V21)>R22,R22,('SMSF Serviceability Calculator'!$C$55-V21))) -> 0 | V22: =V21+U22 -> 0 | W22: =U22*S22 -> 0 | Y22: =U22-W22 -> 0 | AA22: =U22*1% -> 0 | AE22: =AE9 -> 10000001 | AF22: 20000000 | AG22: 10000000 | AH22: 0.45 | AJ22: =IF('Non-Res Serviceability'!G20-AK21<=0,0,('Non-Res Serviceability'!G20-AK21)) -> 0 | AK22: =AK21+AJ22 -> 0 | AL22: =AJ22*AH22 -> 0 | AN22: =AJ22-AL22 -> 0 | AP22: =AJ22*1% -> 0
D23: Totals: | F23: =SUM(F18:F22) -> 0 | H23: =SUM(H18:H22) -> 0 | J23: =SUM(J18:J22) -> 0 | L23: =SUM(L20:L22) -> 0 | S23: Totals: | U23: =SUM(U18:U22) -> 0 | W23: =SUM(W18:W22) -> 0 | Y23: =SUM(Y18:Y22) -> 0 | AA23: =SUM(AA20:AA22) -> 0 | AH23: Totals: | AJ23: =SUM(AJ18:AJ22) -> 0 | AL23: =SUM(AL18:AL22) -> 0 | AN23: =SUM(AN18:AN22) -> 0 | AP23: =SUM(AP20:AP22) -> 0
A24: Low & middle income tax offset (monthly) | C24: =IF($F$23<=$B$97,$D$97,(IF($F$23<=$B$98,$D$98,IF($F$23<=$B$99,(($F$23-$B$98)*$C$99)+$D$99,IF($F$23<=$B$100,$D$100,IF($F$23<=$B$101,(($F$23-$B$100)*$C$101)+$D$101,IF($F$23<=$B$102,$D$102,0)))))))/12 -> 0 | D24: Refer table | P24: Low & middle income tax offset (monthly) | R24: =IF($U$23<=$B$97,$D$97,(IF($U$23<=$B$98,$D$98,IF($U$23<=$B$99,(($U$23-$B$98)*$C$99)+$D$99,IF($U$23<=$B$100,$D$100,IF($U$23<=$B$101,(($U$23-$B$100)*$C$101)+$D$101,IF($U$23<=$B$102,$D$102,0)))))))/12 -> 0 | S24: Refer table | AE24: Budget Repair Levy (monthly) | AG24: 0 | AH24: N/A
A25: Low income tax offset (monthly) | C25: =IF($F$23<=$B$109,$D$109,IF($F$23<=$B$110,$D$110,IF($F$23<=$B$111,(($F$23-$B$110)*$C$111)+$D$111,IF($F$23<=$B$112,$D$112,0))))/12 -> 0 | D25: Refer table | P25: Low income tax offset (monthly) | R25: =IF($U$23<=$B$109,$D$109,IF($U$23<=$B$110,$D$110,IF($U$23<=$B$111,(($U$23-$B$110)*$C$111)+$D$111,IF($U$23<=$B$112,$D$112,0))))/12 -> 0 | S25: Refer table
A26: Medicare Levy (monthly) | C26: =F23*(2/100)/12 -> 0 | D26: 0.02 | P26: Medicare Levy (monthly) | R26: =U23*(2/100)/12 -> 0 | S26: 0.02 | AE26: Medicare Levy (monthly) | AG26: 0 | AH26: N/A
C27: =SUM(C24:C26) -> 0 | H27: Monthly | J27: =(J23/12)-C27 -> 0 | R27: =SUM(R24:R26) -> 0 | W27: Monthly | Y27: =(Y23/12)-R27 -> 0 | AG27: =SUM(AG24:AG26) -> 0 | AL27: Monthly | AN27: =(AN23/12)-AG27 -> 0
A29: Applicant 3 | P29: Applicant 3 | AE29: Applicant 3
A30: Gross Taxable Income | D30: Tax Rate | F30: Gross | H30: Tax | J30: Net | P30: Gross Taxable Income | S30: Tax Rate | U30: Gross | W30: Tax | Y30: Net | AE30: Gross Taxable Income | AH30: Tax Rate | AJ30: Gross | AL30: Tax | AN30: Net
A31: =A18 -> 1 | B31: =B18 -> 18200 | C31: =C18 -> 18200 | D31: =D18 -> 0 | F31: =IF('Serviceability Calculator'!C16<B31,'Serviceability Calculator'!C16,C31) -> 0 | G31: =F31 -> 0 | H31: =F31*D31 -> 0 | J31: =F31-H31 -> 0 | P31: =A31 -> 1 | Q31: 18200 | R31: =C31 -> 18200 | S31: =D31 -> 0 | U31: =IF('SMSF Serviceability Calculator'!C56<Q31,'SMSF Serviceability Calculator'!C56,R31) -> 0 | V31: =U31 -> 0 | W31: =U31*S31 -> 0 | Y31: =U31-W31 -> 0 | AE31: =AE18 -> -1000000 | AF31: =AF18 -> 0 | AG31: =AG18 -> 0 | AH31: =AH18 -> 0 | AJ31: =IF('Non-Res Serviceability'!G21<AF31,'Non-Res Serviceability'!G21,AG31) -> 0 | AK31: =AJ31 -> 0 | AL31: =AJ31*AH31 -> 0 | AN31: =AJ31-AL31 -> 0
A32: =A19 -> 18201 | B32: 37000 | C32: 18800 | D32: 0.19 | F32: =IF(G31='Serviceability Calculator'!C16,0,IF(('Serviceability Calculator'!C16-G31)>C32,C32,('Serviceability Calculator'!C16-G31))) -> 0 | G32: =G31+F32 -> 0 | H32: =F32*D32 -> 0 | J32: =F32-H32 -> 0 | P32: 18201 | Q32: 37000 | R32: 18800 | S32: 0.19 | U32: =IF(V31='SMSF Serviceability Calculator'!$C$56,0,IF(('SMSF Serviceability Calculator'!$C$56-V31)>R32,R32,('SMSF Serviceability Calculator'!$C$56-V31))) -> 0 | V32: =V31+U32 -> 0 | W32: =U32*S32 -> 0 | Y32: =U32-W32 -> 0 | AE32: =AE19 -> 1 | AF32: 90000 | AG32: 90000 | AH32: 0.325 | AJ32: =IF(AK31='Non-Res Serviceability'!G21,0,IF(('Non-Res Serviceability'!G21-AK31)>AG32,AG32,('Non-Res Serviceability'!G21-AK31))) -> 0 | AK32: =AK31+AJ32 -> 0 | AL32: =AJ32*AH32 -> 0 | AN32: =AJ32-AL32 -> 0
A33: =A20 -> 37001 | B33: 90000 | C33: 53000 | D33: 0.325 | F33: =IF(G32='Serviceability Calculator'!C16,0,IF(('Serviceability Calculator'!C16-G32)>C33,C33,('Serviceability Calculator'!C16-G32))) -> 0 | G33: =G32+F33 -> 0 | H33: =F33*D33 -> 0 | J33: =F33-H33 -> 0 | L33: =IF(F33>13000,(F33-13000)*0.5%,0) -> 0 | P33: 37001 | Q33: 90000 | R33: 53000 | S33: 0.325 | U33: =IF(V32='SMSF Serviceability Calculator'!$C$56,0,IF(('SMSF Serviceability Calculator'!$C$56-V32)>R33,R33,('SMSF Serviceability Calculator'!$C$56-V32))) -> 0 | V33: =V32+U33 -> 0 | W33: =U33*S33 -> 0 | Y33: =U33-W33 -> 0 | AA33: =IF(U33>13000,(U33-13000)*0.5%,0) -> 0 | AE33: =AE20 -> 90001 | AF33: 180000 | AG33: 90000 | AH33: 0.37 | AJ33: =IF(AK32='Non-Res Serviceability'!G21,0,IF(('Non-Res Serviceability'!G21-AK32)>AG33,AG33,('Non-Res Serviceability'!G21-AK32))) -> 0 | AK33: =AK32+AJ33 -> 0 | AL33: =AJ33*AH33 -> 0 | AN33: =AJ33-AL33 -> 0 | AP33: =IF(AJ33>13000,(AJ33-13000)*0.5%,0) -> 0
A34: =A21 -> 90001 | B34: 180000 | C34: 90000 | D34: 0.37 | F34: =IF(G33='Serviceability Calculator'!C16,0,IF(('Serviceability Calculator'!C16-G33)>C34,C34,('Serviceability Calculator'!C16-G33))) -> 0 | G34: =G33+F34 -> 0 | H34: =F34*D34 -> 0 | J34: =F34-H34 -> 0 | L34: =SUM(M34:N34) -> 0 | M34: =IF(F34<=20000,F34*0.5%,0) -> 0 | N34: =IF(F34>20000,((F34-20000)*1%)+100,0) -> 0 | P34: 90001 | Q34: 180000 | R34: 90000 | S34: 0.37 | U34: =IF(V33='SMSF Serviceability Calculator'!$C$56,0,IF(('SMSF Serviceability Calculator'!$C$56-V33)>R34,R34,('SMSF Serviceability Calculator'!$C$56-V33))) -> 0 | V34: =V33+U34 -> 0 | W34: =U34*S34 -> 0 | Y34: =U34-W34 -> 0 | AA34: =SUM(AB34:AC34) -> 0 | AB34: =IF(U34<=20000,U34*0.5%,0) -> 0 | AC34: =IF(U34>20000,((U34-20000)*1%)+100,0) -> 0 | AE34: =AE21 -> 180000 | AF34: 10000000 | AG34: 9820001 | AH34: 0.45 | AJ34: =IF(AK33='Non-Res Serviceability'!G21,0,IF(('Non-Res Serviceability'!G21-AK33)>AG34,AG34,('Non-Res Serviceability'!G21-AK33))) -> 0 | AK34: =AK33+AJ34 -> 0 | AL34: =AJ34*AH34 -> 0 | AN34: =AJ34-AL34 -> 0 | AP34: =SUM(AQ34:AR34) -> 0 | AQ34: =IF(AJ34<=20000,AJ34*0.5%,0) -> 0 | AR34: =IF(AJ34>20000,((AJ34-20000)*1%)+100,0) -> 0
A35: =A22 -> 180001 | B35: 10000000 | C35: 9820000 | D35: 0.45 | F35: =IF('Serviceability Calculator'!C16-G34<=0,0,('Serviceability Calculator'!C16-G34)) -> 0 | G35: =G34+F35 -> 0 | H35: =F35*D35 -> 0 | J35: =F35-H35 -> 0 | L35: =F35*1% -> 0 | P35: 180001 | Q35: 10000000 | R35: 9820000 | S35: 0.45 | U35: =IF(V34='SMSF Serviceability Calculator'!$C$56,0,IF(('SMSF Serviceability Calculator'!$C$56-V34)>R35,R35,('SMSF Serviceability Calculator'!$C$56-V34))) -> 0 | V35: =V34+U35 -> 0 | W35: =U35*S35 -> 0 | Y35: =U35-W35 -> 0 | AA35: =U35*1% -> 0 | AE35: =AE22 -> 10000001 | AF35: 20000000 | AG35: 10000000 | AH35: 0.45 | AJ35: =IF('Non-Res Serviceability'!G21-AK34<=0,0,('Non-Res Serviceability'!G21-AK34)) -> 0 | AK35: =AK34+AJ35 -> 0 | AL35: =AJ35*AH35 -> 0 | AN35: =AJ35-AL35 -> 0 | AP35: =AJ35*1% -> 0
D36: Totals: | F36: =SUM(F31:F35) -> 0 | H36: =SUM(H31:H35) -> 0 | J36: =SUM(J31:J35) -> 0 | L36: =SUM(L33:L35) -> 0 | S36: Totals: | U36: =SUM(U31:U35) -> 0 | W36: =SUM(W31:W35) -> 0 | Y36: =SUM(Y31:Y35) -> 0 | AA36: =SUM(AA33:AA35) -> 0 | AH36: Totals: | AJ36: =SUM(AJ31:AJ35) -> 0 | AL36: =SUM(AL31:AL35) -> 0 | AN36: =SUM(AN31:AN35) -> 0 | AP36: =SUM(AP33:AP35) -> 0
A37: Low & middle income tax offset (monthly) | C37: =IF($F$36<=$B$97,$D$97,(IF($F$36<=$B$98,$D$98,IF($F$36<=$B$99,(($F$36-$B$98)*$C$99)+$D$99,IF($F$36<=$B$100,$D$100,IF($F$36<=$B$101,(($F$36-$B$100)*$C$101)+$D$101,IF($F$36<=$B$102,$D$102,0)))))))/12 -> 0 | D37: Refer table | P37: Low & middle income tax offset (monthly) | R37: =IF($U$36<=$B$97,$D$97,(IF($U$36<=$B$98,$D$98,IF($U$36<=$B$99,(($U$36-$B$98)*$C$99)+$D$99,IF($U$36<=$B$100,$D$100,IF($U$36<=$B$101,(($U$36-$B$100)*$C$101)+$D$101,IF($U$36<=$B$102,$D$102,0)))))))/12 -> 0 | S37: Refer table | AE37: Budget Repair Levy (monthly) | AG37: 0 | AH37: N/A
A38: Low income tax offset (monthly) | C38: =IF($F$36<=$B$109,$D$109,IF($F$36<=$B$110,$D$110,IF($F$36<=$B$111,(($F$36-$B$110)*$C$111)+$D$111,IF($F$36<=$B$112,$D$112,0))))/12 -> 0 | D38: Refer table | P38: Low income tax offset (monthly) | R38: =IF($U$36<=$B$109,$D$109,IF($U$36<=$B$110,$D$110,IF($U$36<=$B$111,(($U$36-$B$110)*$C$111)+$D$111,IF($U$36<=$B$112,$D$112,0))))/12 -> 0 | S38: Refer table
A39: Medicare Levy (monthly) | C39: =F36*(2/100)/12 -> 0 | D39: 0.02 | P39: Medicare Levy (monthly) | R39: =U36*(2/100)/12 -> 0 | S39: 0.02 | AE39: Medicare Levy (monthly) | AG39: 0 | AH39: N/A
C40: =SUM(C37:C39) -> 0 | H40: Monthly | J40: =(J36/12)-C40 -> 0 | R40: =SUM(R37:R39) -> 0 | W40: Monthly | Y40: =(Y36/12)-R40 -> 0 | AG40: =SUM(AG37:AG39) -> 0 | AL40: Monthly | AN40: =(AN36/12)-AG40 -> 0
A42: Applicant 4 | P42: Applicant 4 | AE42: Applicant 4
A43: Gross Taxable Income | D43: Tax Rate | F43: Gross | H43: Tax | J43: Net | P43: Gross Taxable Income | S43: Tax Rate | U43: Gross | W43: Tax | Y43: Net | AE43: Gross Taxable Income | AH43: Tax Rate | AJ43: Gross | AL43: Tax | AN43: Net
A44: =A31 -> 1 | B44: =B31 -> 18200 | C44: =C31 -> 18200 | D44: =D31 -> 0 | F44: =IF('Serviceability Calculator'!C17<B44,'Serviceability Calculator'!C17,C44) -> 0 | G44: =F44 -> 0 | H44: =F44*D44 -> 0 | J44: =F44-H44 -> 0 | P44: =A44 -> 1 | Q44: 18200 | R44: =C44 -> 18200 | S44: =D44 -> 0 | U44: =IF('SMSF Serviceability Calculator'!C57<Q44,'SMSF Serviceability Calculator'!C57,R44) -> 0 | V44: =U44 -> 0 | W44: =U44*S44 -> 0 | Y44: =U44-W44 -> 0 | AE44: =AE31 -> -1000000 | AF44: =AF31 -> 0 | AG44: =AG31 -> 0 | AH44: =AH31 -> 0 | AJ44: =IF('Non-Res Serviceability'!G22<AF44,'Non-Res Serviceability'!G22,AG44) -> 0 | AK44: =AJ44 -> 0 | AL44: =AJ44*AH44 -> 0 | AN44: =AJ44-AL44 -> 0
A45: =A32 -> 18201 | B45: 37000 | C45: 18800 | D45: 0.19 | F45: =IF(G44='Serviceability Calculator'!C17,0,IF(('Serviceability Calculator'!C17-G44)>C45,C45,('Serviceability Calculator'!C17-G44))) -> 0 | G45: =G44+F45 -> 0 | H45: =F45*D45 -> 0 | J45: =F45-H45 -> 0 | P45: 18201 | Q45: 37000 | R45: 18800 | S45: 0.19 | U45: =IF(V44='SMSF Serviceability Calculator'!$C$57,0,IF(('SMSF Serviceability Calculator'!$C$57-V44)>R45,R45,('SMSF Serviceability Calculator'!$C$57-V44))) -> 0 | V45: =V44+U45 -> 0 | W45: =U45*S45 -> 0 | Y45: =U45-W45 -> 0 | AE45: =AE32 -> 1 | AF45: 90000 | AG45: 90000 | AH45: 0.325 | AJ45: =IF(AK44='Non-Res Serviceability'!G22,0,IF(('Non-Res Serviceability'!G22-AK44)>AG45,AG45,('Non-Res Serviceability'!G22-AK44))) -> 0 | AK45: =AK44+AJ45 -> 0 | AL45: =AJ45*AH45 -> 0 | AN45: =AJ45-AL45 -> 0
A46: =A33 -> 37001 | B46: 90000 | C46: 53000 | D46: 0.325 | F46: =IF(G45='Serviceability Calculator'!C17,0,IF(('Serviceability Calculator'!C17-G45)>C46,C46,('Serviceability Calculator'!C17-G45))) -> 0 | G46: =G45+F46 -> 0 | H46: =F46*D46 -> 0 | J46: =F46-H46 -> 0 | L46: =IF(F46>13000,(F46-13000)*0.5%,0) -> 0 | P46: 37001 | Q46: 90000 | R46: 53000 | S46: 0.325 | U46: =IF(V45='SMSF Serviceability Calculator'!$C$57,0,IF(('SMSF Serviceability Calculator'!$C$57-V45)>R46,R46,('SMSF Serviceability Calculator'!$C$57-V45))) -> 0 | V46: =V45+U46 -> 0 | W46: =U46*S46 -> 0 | Y46: =U46-W46 -> 0 | AA46: =IF(U46>13000,(U46-13000)*0.5%,0) -> 0 | AE46: =AE33 -> 90001 | AF46: 180000 | AG46: 90000 | AH46: 0.37 | AJ46: =IF(AK45='Non-Res Serviceability'!G22,0,IF(('Non-Res Serviceability'!G22-AK45)>AG46,AG46,('Non-Res Serviceability'!G22-AK45))) -> 0 | AK46: =AK45+AJ46 -> 0 | AL46: =AJ46*AH46 -> 0 | AN46: =AJ46-AL46 -> 0 | AP46: =IF(AJ46>13000,(AJ46-13000)*0.5%,0) -> 0
A47: =A34 -> 90001 | B47: 180000 | C47: 90000 | D47: 0.37 | F47: =IF(G46='Serviceability Calculator'!C17,0,IF(('Serviceability Calculator'!C17-G46)>C47,C47,('Serviceability Calculator'!C17-G46))) -> 0 | G47: =G46+F47 -> 0 | H47: =F47*D47 -> 0 | J47: =F47-H47 -> 0 | L47: =SUM(M47:N47) -> 0 | M47: =IF(F47<=20000,F47*0.5%,0) -> 0 | N47: =IF(F47>20000,((F47-20000)*1%)+100,0) -> 0 | P47: 90001 | Q47: 180000 | R47: 90000 | S47: 0.37 | U47: =IF(V46='SMSF Serviceability Calculator'!$C$57,0,IF(('SMSF Serviceability Calculator'!$C$57-V46)>R47,R47,('SMSF Serviceability Calculator'!$C$57-V46))) -> 0 | V47: =V46+U47 -> 0 | W47: =U47*S47 -> 0 | Y47: =U47-W47 -> 0 | AA47: =SUM(AB47:AC47) -> 0 | AB47: =IF(U47<=20000,U47*0.5%,0) -> 0 | AC47: =IF(U47>20000,((U47-20000)*1%)+100,0) -> 0 | AE47: =AE34 -> 180000 | AF47: 10000000 | AG47: 9820001 | AH47: 0.45 | AJ47: =IF(AK46='Non-Res Serviceability'!G22,0,IF(('Non-Res Serviceability'!G22-AK46)>AG47,AG47,('Non-Res Serviceability'!G22-AK46))) -> 0 | AK47: =AK46+AJ47 -> 0 | AL47: =AJ47*AH47 -> 0 | AN47: =AJ47-AL47 -> 0 | AP47: =SUM(AQ47:AR47) -> 0 | AQ47: =IF(AJ47<=20000,AJ47*0.5%,0) -> 0 | AR47: =IF(AJ47>20000,((AJ47-20000)*1%)+100,0) -> 0
A48: =A35 -> 180001 | B48: 10000000 | C48: 9820000 | D48: 0.45 | F48: =IF('Serviceability Calculator'!C17-G47<=0,0,('Serviceability Calculator'!C17-G47)) -> 0 | G48: =G47+F48 -> 0 | H48: =F48*D48 -> 0 | J48: =F48-H48 -> 0 | L48: =F48*1% -> 0 | P48: 180001 | Q48: 10000000 | R48: 9820000 | S48: 0.45 | U48: =IF(V47='SMSF Serviceability Calculator'!$C$57,0,IF(('SMSF Serviceability Calculator'!$C$57-V47)>R48,R48,('SMSF Serviceability Calculator'!$C$57-V47))) -> 0 | V48: =V47+U48 -> 0 | W48: =U48*S48 -> 0 | Y48: =U48-W48 -> 0 | AA48: =U48*1% -> 0 | AE48: =AE35 -> 10000001 | AF48: 20000000 | AG48: 10000000 | AH48: 0.45 | AJ48: =IF('Non-Res Serviceability'!G22-AK47<=0,0,('Non-Res Serviceability'!G22-AK47)) -> 0 | AK48: =AK47+AJ48 -> 0 | AL48: =AJ48*AH48 -> 0 | AN48: =AJ48-AL48 -> 0 | AP48: =AJ48*1% -> 0
D49: Totals: | F49: =SUM(F44:F48) -> 0 | H49: =SUM(H44:H48) -> 0 | J49: =SUM(J44:J48) -> 0 | L49: =SUM(L46:L48) -> 0 | S49: Totals: | U49: =SUM(U44:U48) -> 0 | W49: =SUM(W44:W48) -> 0 | Y49: =SUM(Y44:Y48) -> 0 | AA49: =SUM(AA46:AA48) -> 0 | AH49: Totals: | AJ49: =SUM(AJ44:AJ48) -> 0 | AL49: =SUM(AL44:AL48) -> 0 | AN49: =SUM(AN44:AN48) -> 0 | AP49: =SUM(AP46:AP48) -> 0
A50: Low & middle income tax offset (monthly) | C50: =IF($F$49<=$B$97,$D$97,(IF($F$49<=$B$98,$D$98,IF($F$49<=$B$99,(($F$49-$B$98)*$C$99)+$D$99,IF($F$49<=$B$100,$D$100,IF($F$49<=$B$101,(($F$49-$B$100)*$C$101)+$D$101,IF($F$49<=$B$102,$D$102,0)))))))/12 -> 0 | D50: Refer table | P50: Low & middle income tax offset (monthly) | R50: =IF($U$49<=$B$97,$D$97,(IF($U$49<=$B$98,$D$98,IF($U$49<=$B$99,(($U$49-$B$98)*$C$99)+$D$99,IF($U$49<=$B$100,$D$100,IF($U$49<=$B$101,(($U$49-$B$100)*$C$101)+$D$101,IF($U$49<=$B$102,$D$102,0)))))))/12 -> 0 | S50: Refer table | AE50: Budget Repair Levy (monthly) | AG50: 0 | AH50: N/A
A51: Low income tax offset (monthly) | C51: =IF($F$49<=$B$109,$D$109,IF($F$49<=$B$110,$D$110,IF($F$49<=$B$111,(($F$49-$B$110)*$C$111)+$D$111,IF($F$49<=$B$112,$D$112,0))))/12 -> 0 | D51: Refer table | P51: Low income tax offset (monthly) | R51: =IF($U$49<=$B$109,$D$109,IF($U$49<=$B$110,$D$110,IF($U$49<=$B$111,(($U$49-$B$110)*$C$111)+$D$111,IF($U$49<=$B$112,$D$112,0))))/12 -> 0 | S51: Refer table
A52: Medicare Levy (monthly) | C52: =F49*(2/100)/12 -> 0 | D52: 0.02 | P52: Medicare Levy (monthly) | R52: =U49*(2/100)/12 -> 0 | S52: 0.02 | AE52: Medicare Levy (monthly) | AG52: 0 | AH52: N/A
C53: =SUM(C50:C52) -> 0 | H53: Monthly | J53: =(J49/12)-C53 -> 0 | R53: =SUM(R50:R52) -> 0 | W53: Monthly | Y53: =(Y49/12)-R53 -> 0 | AG53: =SUM(AG50:AG52) -> 0 | AL53: Monthly | AN53: =(AN49/12)-AG53 -> 0
A55: Applicant 5 | P55: Applicant 5 | AE55: Applicant 5
A56: Gross Taxable Income | D56: Tax Rate | F56: Gross | H56: Tax | J56: Net | P56: Gross Taxable Income | S56: Tax Rate | U56: Gross | W56: Tax | Y56: Net | AE56: Gross Taxable Income | AH56: Tax Rate | AJ56: Gross | AL56: Tax | AN56: Net
A57: 1 | B57: 6000 | C57: =B57-A57+1 -> 6000 | D57: 0 | F57: =IF('Serviceability Calculator'!#REF!<B57,'Serviceability Calculator'!#REF!,C57) ->  | G57: =F57 ->  | H57: =F57*D57 ->  | J57: =F57-H57 ->  | P57: 1 | Q57: 6000 | R57: =Q57-P57+1 -> 6000 | S57: 0 | U57: =IF('Serviceability Calculator'!#REF!<Q57,'Serviceability Calculator'!#REF!,R57) ->  | V57: =U57 ->  | W57: =U57*S57 ->  | Y57: =U57-W57 ->  | AE57: 1 | AF57: 6000 | AG57: =AF57-AE57+1 -> 6000 | AH57: 0 | AJ57: =IF('Non-Res Serviceability'!#REF!<AF57,'Non-Res Serviceability'!#REF!,AG57) ->  | AK57: =AJ57 ->  | AL57: =AJ57*AH57 ->  | AN57: =AJ57-AL57 -> 
A58: 6001 | B58: 35000 | C58: =B58-A58+1 -> 29000 | D58: 0.15 | F58: =IF(G57='Serviceability Calculator'!#REF!,0,IF(('Serviceability Calculator'!#REF!-G57)>C58,C58,('Serviceability Calculator'!#REF!-G57))) ->  | G58: =G57+F58 ->  | H58: =F58*D58 ->  | J58: =F58-H58 ->  | P58: 6001 | Q58: 35000 | R58: =Q58-P58+1 -> 29000 | S58: 0.15 | U58: =IF(V57='Serviceability Calculator'!#REF!,0,IF(('Serviceability Calculator'!#REF!-V57)>R58,R58,('Serviceability Calculator'!#REF!-V57))) ->  | V58: =V57+U58 ->  | W58: =U58*S58 ->  | Y58: =U58-W58 ->  | AE58: 6001 | AF58: 35000 | AG58: =AF58-AE58+1 -> 29000 | AH58: 0.15 | AJ58: =IF(AK57='Non-Res Serviceability'!#REF!,0,IF(('Non-Res Serviceability'!#REF!-AK57)>AG58,AG58,('Non-Res Serviceability'!#REF!-AK57))) ->  | AK58: =AK57+AJ58 ->  | AL58: =AJ58*AH58 ->  | AN58: =AJ58-AL58 -> 
A59: 35001 | B59: 80000 | C59: =B59-A59+1 -> 45000 | D59: 0.3 | F59: =IF(G58='Serviceability Calculator'!#REF!,0,IF(('Serviceability Calculator'!#REF!-G58)>C59,C59,('Serviceability Calculator'!#REF!-G58))) ->  | G59: =G58+F59 ->  | H59: =F59*D59 ->  | J59: =F59-H59 ->  | P59: 35001 | Q59: 80000 | R59: =Q59-P59+1 -> 45000 | S59: 0.3 | U59: =IF(V58='Serviceability Calculator'!#REF!,0,IF(('Serviceability Calculator'!#REF!-V58)>R59,R59,('Serviceability Calculator'!#REF!-V58))) ->  | V59: =V58+U59 ->  | W59: =U59*S59 ->  | Y59: =U59-W59 ->  | AE59: 35001 | AF59: 80000 | AG59: =AF59-AE59+1 -> 45000 | AH59: 0.3 | AJ59: =IF(AK58='Non-Res Serviceability'!#REF!,0,IF(('Non-Res Serviceability'!#REF!-AK58)>AG59,AG59,('Non-Res Serviceability'!#REF!-AK58))) ->  | AK59: =AK58+AJ59 ->  | AL59: =AJ59*AH59 ->  | AN59: =AJ59-AL59 -> 
A60: 80001 | B60: 180000 | C60: =B60-A60+1 -> 100000 | D60: 0.38 | F60: =IF(G59='Serviceability Calculator'!#REF!,0,IF(('Serviceability Calculator'!#REF!-G59)>C60,C60,('Serviceability Calculator'!#REF!-G59))) ->  | G60: =G59+F60 ->  | H60: =F60*D60 ->  | J60: =F60-H60 ->  | P60: 80001 | Q60: 180000 | R60: =Q60-P60+1 -> 100000 | S60: 0.38 | U60: =IF(V59='Serviceability Calculator'!#REF!,0,IF(('Serviceability Calculator'!#REF!-V59)>R60,R60,('Serviceability Calculator'!#REF!-V59))) ->  | V60: =V59+U60 ->  | W60: =U60*S60 ->  | Y60: =U60-W60 ->  | AE60: 80001 | AF60: 180000 | AG60: =AF60-AE60+1 -> 100000 | AH60: 0.38 | AJ60: =IF(AK59='Non-Res Serviceability'!#REF!,0,IF(('Non-Res Serviceability'!#REF!-AK59)>AG60,AG60,('Non-Res Serviceability'!#REF!-AK59))) ->  | AK60: =AK59+AJ60 ->  | AL60: =AJ60*AH60 ->  | AN60: =AJ60-AL60 -> 
A61: 180001 | B61: 1000000 | C61: =B61-A61+1 -> 820000 | D61: 0.45 | F61: =IF('Serviceability Calculator'!#REF!-G60<=0,0,('Serviceability Calculator'!#REF!-G60)) ->  | G61: =G60+F61 ->  | H61: =F61*D61 ->  | J61: =F61-H61 ->  | P61: 180001 | Q61: 1000000 | R61: =Q61-P61+1 -> 820000 | S61: 0.45 | U61: =IF('Serviceability Calculator'!#REF!-V60<=0,0,('Serviceability Calculator'!#REF!-V60)) ->  | V61: =V60+U61 ->  | W61: =U61*S61 ->  | Y61: =U61-W61 ->  | AE61: 180001 | AF61: 1000000 | AG61: =AF61-AE61+1 -> 820000 | AH61: 0.45 | AJ61: =IF('Non-Res Serviceability'!#REF!-AK60<=0,0,('Non-Res Serviceability'!#REF!-AK60)) ->  | AK61: =AK60+AJ61 ->  | AL61: =AJ61*AH61 ->  | AN61: =AJ61-AL61 -> 
D62: Totals: | F62: =SUM(F57:F61) ->  | H62: =SUM(H57:H61) ->  | J62: =SUM(J57:J61) ->  | S62: Totals: | U62: =SUM(U57:U61) ->  | W62: =SUM(W57:W61) ->  | Y62: =SUM(Y57:Y61) ->  | AH62: Totals: | AJ62: =SUM(AJ57:AJ61) ->  | AL62: =SUM(AL57:AL61) ->  | AN62: =SUM(AN57:AN61) -> 
A63: =F62*(1.5/100)/12 ->  | B63: Medicare Levy (Monthly) | P63: =U62*(1.5/100)/12 ->  | Q63: Medicare Levy (Monthly) | AE63: =AJ62*(1.5/100)/12 ->  | AF63: Medicare Levy (Monthly)
H64: Monthly | J64: =(J62/12)-A63 ->  | W64: Monthly | Y64: =(Y62/12)-P63 ->  | AL64: Monthly | AN64: =(AN62/12)-AE63 -> 
A66: Applicant 6 | P66: Applicant 6 | AE66: Applicant 6
A67: Gross Taxable Income | D67: Tax Rate | F67: Gross | H67: Tax | J67: Net | P67: Gross Taxable Income | S67: Tax Rate | U67: Gross | W67: Tax | Y67: Net | AE67: Gross Taxable Income | AH67: Tax Rate | AJ67: Gross | AL67: Tax | AN67: Net
A68: 1 | B68: 6000 | C68: =B68-A68+1 -> 6000 | D68: 0 | F68: =IF('Serviceability Calculator'!#REF!<B68,'Serviceability Calculator'!#REF!,C68) ->  | G68: =F68 ->  | H68: =F68*D68 ->  | J68: =F68-H68 ->  | P68: 1 | Q68: 6000 | R68: =Q68-P68+1 -> 6000 | S68: 0 | U68: =IF('Serviceability Calculator'!#REF!<Q68,'Serviceability Calculator'!#REF!,R68) ->  | V68: =U68 ->  | W68: =U68*S68 ->  | Y68: =U68-W68 ->  | AE68: 1 | AF68: 6000 | AG68: =AF68-AE68+1 -> 6000 | AH68: 0 | AJ68: =IF('Non-Res Serviceability'!#REF!<AF68,'Non-Res Serviceability'!#REF!,AG68) ->  | AK68: =AJ68 ->  | AL68: =AJ68*AH68 ->  | AN68: =AJ68-AL68 -> 
A69: 6001 | B69: 35000 | C69: =B69-A69+1 -> 29000 | D69: 0.15 | F69: =IF(G68='Serviceability Calculator'!#REF!,0,IF(('Serviceability Calculator'!#REF!-G68)>C69,C69,('Serviceability Calculator'!#REF!-G68))) ->  | G69: =G68+F69 ->  | H69: =F69*D69 ->  | J69: =F69-H69 ->  | P69: 6001 | Q69: 35000 | R69: =Q69-P69+1 -> 29000 | S69: 0.15 | U69: =IF(V68='Serviceability Calculator'!#REF!,0,IF(('Serviceability Calculator'!#REF!-V68)>R69,R69,('Serviceability Calculator'!#REF!-V68))) ->  | V69: =V68+U69 ->  | W69: =U69*S69 ->  | Y69: =U69-W69 ->  | AE69: 6001 | AF69: 35000 | AG69: =AF69-AE69+1 -> 29000 | AH69: 0.15 | AJ69: =IF(AK68='Non-Res Serviceability'!#REF!,0,IF(('Non-Res Serviceability'!#REF!-AK68)>AG69,AG69,('Non-Res Serviceability'!#REF!-AK68))) ->  | AK69: =AK68+AJ69 ->  | AL69: =AJ69*AH69 ->  | AN69: =AJ69-AL69 -> 
A70: 35001 | B70: 80000 | C70: =B70-A70+1 -> 45000 | D70: 0.3 | F70: =IF(G69='Serviceability Calculator'!#REF!,0,IF(('Serviceability Calculator'!#REF!-G69)>C70,C70,('Serviceability Calculator'!#REF!-G69))) ->  | G70: =G69+F70 ->  | H70: =F70*D70 ->  | J70: =F70-H70 ->  | P70: 35001 | Q70: 80000 | R70: =Q70-P70+1 -> 45000 | S70: 0.3 | U70: =IF(V69='Serviceability Calculator'!#REF!,0,IF(('Serviceability Calculator'!#REF!-V69)>R70,R70,('Serviceability Calculator'!#REF!-V69))) ->  | V70: =V69+U70 ->  | W70: =U70*S70 ->  | Y70: =U70-W70 ->  | AE70: 35001 | AF70: 80000 | AG70: =AF70-AE70+1 -> 45000 | AH70: 0.3 | AJ70: =IF(AK69='Non-Res Serviceability'!#REF!,0,IF(('Non-Res Serviceability'!#REF!-AK69)>AG70,AG70,('Non-Res Serviceability'!#REF!-AK69))) ->  | AK70: =AK69+AJ70 ->  | AL70: =AJ70*AH70 ->  | AN70: =AJ70-AL70 -> 
A71: 80001 | B71: 180000 | C71: =B71-A71+1 -> 100000 | D71: 0.38 | F71: =IF(G70='Serviceability Calculator'!#REF!,0,IF(('Serviceability Calculator'!#REF!-G70)>C71,C71,('Serviceability Calculator'!#REF!-G70))) ->  | G71: =G70+F71 ->  | H71: =F71*D71 ->  | J71: =F71-H71 ->  | P71: 80001 | Q71: 180000 | R71: =Q71-P71+1 -> 100000 | S71: 0.38 | U71: =IF(V70='Serviceability Calculator'!#REF!,0,IF(('Serviceability Calculator'!#REF!-V70)>R71,R71,('Serviceability Calculator'!#REF!-V70))) ->  | V71: =V70+U71 ->  | W71: =U71*S71 ->  | Y71: =U71-W71 ->  | AE71: 80001 | AF71: 180000 | AG71: =AF71-AE71+1 -> 100000 | AH71: 0.38 | AJ71: =IF(AK70='Non-Res Serviceability'!#REF!,0,IF(('Non-Res Serviceability'!#REF!-AK70)>AG71,AG71,('Non-Res Serviceability'!#REF!-AK70))) ->  | AK71: =AK70+AJ71 ->  | AL71: =AJ71*AH71 ->  | AN71: =AJ71-AL71 -> 
A72: 180001 | B72: 1000000 | C72: =B72-A72+1 -> 820000 | D72: 0.45 | F72: =IF('Serviceability Calculator'!#REF!-G71<=0,0,('Serviceability Calculator'!#REF!-G71)) ->  | G72: =G71+F72 ->  | H72: =F72*D72 ->  | J72: =F72-H72 ->  | P72: 180001 | Q72: 1000000 | R72: =Q72-P72+1 -> 820000 | S72: 0.45 | U72: =IF('Serviceability Calculator'!#REF!-V71<=0,0,('Serviceability Calculator'!#REF!-V71)) ->  | V72: =V71+U72 ->  | W72: =U72*S72 ->  | Y72: =U72-W72 ->  | AE72: 180001 | AF72: 1000000 | AG72: =AF72-AE72+1 -> 820000 | AH72: 0.45 | AJ72: =IF('Non-Res Serviceability'!#REF!-AK71<=0,0,('Non-Res Serviceability'!#REF!-AK71)) ->  | AK72: =AK71+AJ72 ->  | AL72: =AJ72*AH72 ->  | AN72: =AJ72-AL72 -> 
D73: Totals: | F73: =SUM(F68:F72) ->  | H73: =SUM(H68:H72) ->  | J73: =SUM(J68:J72) ->  | S73: Totals: | U73: =SUM(U68:U72) ->  | W73: =SUM(W68:W72) ->  | Y73: =SUM(Y68:Y72) ->  | AH73: Totals: | AJ73: =SUM(AJ68:AJ72) ->  | AL73: =SUM(AL68:AL72) ->  | AN73: =SUM(AN68:AN72) -> 
A74: =F73*(1.5/100)/12 ->  | B74: Medicare Levy (Monthly) | P74: =U73*(1.5/100)/12 ->  | Q74: Medicare Levy (Monthly) | AE74: =AJ73*(1.5/100)/12 ->  | AF74: Medicare Levy (Monthly)
H75: Monthly | J75: =(J73/12)-A74 ->  | W75: Monthly | Y75: =(Y73/12)-P74 ->  | AL75: Monthly | AN75: =(AN73/12)-AE74 -> 
A78: Company 1 | P78: Company 1 | AE78: Company 1
A79: Gross Taxable Income | D79: Tax Rate | F79: Gross | H79: Tax | J79: Net | P79: Gross Taxable Income | S79: Tax Rate | U79: Gross | W79: Tax | Y79: Net | AE79: Gross Taxable Income | AH79: Tax Rate | AJ79: Gross | AL79: Tax | AN79: Net
D80: 0.275 | F80: ='Serviceability Calculator'!B24 -> 0 | G80: =F80 -> 0 | H80: =F80*D80 -> 0 | J80: =F80-H80 -> 0 | S80: =D80 -> 0.275 | U80: ='SMSF Serviceability Calculator'!B64 -> 0 | V80: =U80 -> 0 | W80: =U80*S80 -> 0 | Y80: =U80-W80 -> 0 | AH80: 0.275 | AJ80: ='Non-Res Serviceability'!F29 -> 0 | AK80: =AJ80 -> 0 | AL80: =AJ80*AH80 -> 0 | AN80: =AJ80-AL80 -> 0
D81: Totals: | F81: =SUM(F80:F80) -> 0 | H81: =SUM(H80:H80) -> 0 | J81: =SUM(J80:J80) -> 0 | S81: Totals: | U81: =SUM(U80:U80) -> 0 | W81: =SUM(W80:W80) -> 0 | Y81: =SUM(Y80:Y80) -> 0 | AH81: Totals: | AJ81: =SUM(AJ80:AJ80) -> 0 | AL81: =SUM(AL80:AL80) -> 0 | AN81: =SUM(AN80:AN80) -> 0
A82: N/A | B82: Medicare Levy (Monthly) | P82: N/A | Q82: Medicare Levy (Monthly) | AE82: N/A | AF82: Medicare Levy (Monthly)
H83: Monthly | J83: =(J81/12) -> 0 | W83: Monthly | Y83: =(Y81/12) -> 0 | AL83: Monthly | AN83: =(AN81/12) -> 0
A85: Company 2 | P85: Company 2 | AE85: Company 2
A86: Gross Taxable Income | D86: Tax Rate | F86: Gross | H86: Tax | J86: Net | P86: Gross Taxable Income | S86: Tax Rate | U86: Gross | W86: Tax | Y86: Net | AE86: Gross Taxable Income | AH86: Tax Rate | AJ86: Gross | AL86: Tax | AN86: Net
D87: =D80 -> 0.275 | F87: ='Serviceability Calculator'!B25 -> 0 | G87: =F87 -> 0 | H87: =F87*D87 -> 0 | J87: =F87-H87 -> 0 | S87: =D87 -> 0.275 | U87: ='SMSF Serviceability Calculator'!B65 -> 0 | V87: =U87 -> 0 | W87: =U87*S87 -> 0 | Y87: =U87-W87 -> 0 | AH87: =AH80 -> 0.275 | AJ87: ='Non-Res Serviceability'!F30 -> 0 | AK87: =AJ87 -> 0 | AL87: =AJ87*AH87 -> 0 | AN87: =AJ87-AL87 -> 0
D88: Totals: | F88: =SUM(F87:F87) -> 0 | H88: =SUM(H87:H87) -> 0 | J88: =SUM(J87:J87) -> 0 | S88: Totals: | U88: =SUM(U87:U87) -> 0 | W88: =SUM(W87:W87) -> 0 | Y88: =SUM(Y87:Y87) -> 0 | AH88: Totals: | AJ88: =SUM(AJ87:AJ87) -> 0 | AL88: =SUM(AL87:AL87) -> 0 | AN88: =SUM(AN87:AN87) -> 0
A89: N/A | B89: Medicare Levy (Monthly) | P89: N/A | Q89: Medicare Levy (Monthly) | AE89: N/A | AF89: Medicare Levy (Monthly)
H90: Monthly | J90: =(J88/12) -> 0 | W90: Monthly | Y90: =(Y88/12) -> 0 | AL90: Monthly | AN90: =(AN88/12) -> 0
P92: SMSF Assets
P93: Gross Taxable Income | S93: Tax Rate | U93: Assets | V93: Income | W93: Tax | Y93: Net
S94: 0.15 | U94: ='SMSF Serviceability Calculator'!B9 -> 0 | V94: =U94*3.9% -> 0 | W94: =V94*S94 -> 0 | Y94: =V94-W94 -> 0
A95: Low & Middle Income Tax Offset table | S95: Totals: | U95: =SUM(U94:U94) -> 0 | W95: =SUM(W94:W94) -> 0 | Y95: =SUM(Y94:Y94) -> 0
A96: Low Band | B96: High Band | C96: % Cacl | D96: $ Calc | P96: N/A | Q96: Medicare Levy (Monthly)
A97: 0 | B97: 19543 | D97: 0
A98: 19543 | B98: 37000 | D98: -255 | W98: Monthly | Y98: =(Y95/12) -> 0
A99: 37001 | B99: 48000 | C99: -0.075 | D99: -255
A100: 48001 | B100: 90000 | D100: -1080 | P100: SMSF Contributions - Applicant 1
A101: 90001 | B101: 126000 | C101: 0.03 | D101: -1080 | P101: Gross Taxable Income | S101: Tax Rate | U101: Gross | W101: Tax | Y101: Net
A102: 126001 | B102: 10000000 | D102: 0 | P102: 1 | Q102: 25000 | R102: =Q102-P102+1 -> 25000 | S102: 0.15 | U102: =IF('SMSF Serviceability Calculator'!B12<Q102,'SMSF Serviceability Calculator'!B12,R102) -> 0 | V102: =U102 -> 0 | W102: =U102*S102 -> 0 | Y102: =V102-W102 -> 0
P103: 25001 | Q103: 10000000 | R103: =Q103-P103+1 -> 9975000 | S103: 0.47 | U103: =IF(V102='SMSF Serviceability Calculator'!$B$12,0,IF(('SMSF Serviceability Calculator'!$B$12-V102)>R103,R103,('SMSF Serviceability Calculator'!$B$12-V102))) -> 0 | V103: =V102+U103 -> 0 | W103: =U103*S103 -> 0 | Y103: =U103-W103 -> 0
S104: Totals: | U104: =SUM(U102:U103) -> 0 | W104: =SUM(W102:W103) -> 0 | Y104: =SUM(Y102:Y103) -> 0
A106: =IF(F10<=B97,D97,IF($F$23<=$B$98,$D$98,IF($F$23<=$B$99,(($F$23-$B$98)*$C$99)+$D$99,IF($F$23<=$B$100,$D$100,IF($F$23<=$B$101,(($F$23-$B$100)*$C$101)+$D$101,IF($F$23<=$B$102,$D$102,0)))))) -> 0 | W106: Monthly | Y106: =(Y104/12) -> 0
A108: Low Income Tax Offset | P108: SMSF Contributions - Applicant 2
A109: 0 | B109: 20593 | D109: 0 | P109: Gross Taxable Income | S109: Tax Rate | U109: Gross | W109: Tax | Y109: Net
A110: 20596 | B110: 37000 | D110: -445 | P110: 1 | Q110: 25000 | R110: =Q110-P110+1 -> 25000 | S110: =S102 -> 0.15 | U110: =IF('SMSF Serviceability Calculator'!B13<Q110,'SMSF Serviceability Calculator'!B13,R110) -> 0 | V110: =U110 -> 0 | W110: =U110*S110 -> 0 | Y110: =V110-W110 -> 0
A111: 37001 | B111: 66666 | C111: 0.015 | D111: -445 | P111: 25001 | Q111: 10000000 | R111: =Q111-P111+1 -> 9975000 | S111: =S103 -> 0.47 | U111: =IF(V110='SMSF Serviceability Calculator'!$B$13,0,IF(('SMSF Serviceability Calculator'!$B$13-V110)>R111,R111,('SMSF Serviceability Calculator'!$B$13-V110))) -> 0 | V111: =V110+U111 -> 0 | W111: =U111*S111 -> 0 | Y111: =U111-W111 -> 0
A112: 66667 | B112: 10000000 | D112: 0 | S112: Totals: | U112: =SUM(U110:U111) -> 0 | W112: =SUM(W110:W111) -> 0 | Y112: =SUM(Y110:Y111) -> 0
W114: Monthly | Y114: =(Y112/12) -> 0
A115: =IF($F$10<=$B$109,$D$109,IF($F$10<=$B$110,$D$110,IF($F$10<=$B$111,(($F$10-$B$110)*$C$111)+$D$111,IF($F$10<=$B$112,$D$112,0)))) -> 0
P116: SMSF Contributions - Applicant 3
P117: Gross Taxable Income | S117: Tax Rate | U117: Gross | W117: Tax | Y117: Net
P118: 1 | Q118: 25000 | R118: =Q118-P118+1 -> 25000 | S118: =S102 -> 0.15 | U118: =IF('SMSF Serviceability Calculator'!B14<Q118,'SMSF Serviceability Calculator'!B14,R118) -> 0 | V118: =U118 -> 0 | W118: =U118*S118 -> 0 | Y118: =V118-W118 -> 0
P119: 25001 | Q119: 10000000 | R119: =Q119-P119+1 -> 9975000 | S119: =S103 -> 0.47 | U119: =IF(V118='SMSF Serviceability Calculator'!$B$14,0,IF(('SMSF Serviceability Calculator'!$B$14-V118)>R119,R119,('SMSF Serviceability Calculator'!$B$14-V118))) -> 0 | V119: =V118+U119 -> 0 | W119: =U119*S119 -> 0 | Y119: =U119-W119 -> 0
S120: Totals: | U120: =SUM(U118:U119) -> 0 | W120: =SUM(W118:W119) -> 0 | Y120: =SUM(Y118:Y119) -> 0
W122: Monthly | Y122: =(Y120/12) -> 0
P124: SMSF Contributions - Applicant 4
P125: Gross Taxable Income | S125: Tax Rate | U125: Gross | W125: Tax | Y125: Net
P126: 1 | Q126: 25000 | R126: =Q126-P126+1 -> 25000 | S126: =S102 -> 0.15 | U126: =IF('SMSF Serviceability Calculator'!B15<Q126,'SMSF Serviceability Calculator'!B15,R126) -> 0 | V126: =U126 -> 0 | W126: =U126*S126 -> 0 | Y126: =V126-W126 -> 0
P127: 25001 | Q127: 10000000 | R127: =Q127-P127+1 -> 9975000 | S127: =S103 -> 0.47 | U127: =IF(V126='SMSF Serviceability Calculator'!$B$15,0,IF(('SMSF Serviceability Calculator'!$B$15-V126)>R127,R127,('SMSF Serviceability Calculator'!$B$15-V126))) -> 0 | V127: =V126+U127 -> 0 | W127: =U127*S127 -> 0 | Y127: =U127-W127 -> 0
S128: Totals: | U128: =SUM(U126:U127) -> 0 | W128: =SUM(W126:W127) -> 0 | Y128: =SUM(Y126:Y127) -> 0
W130: Monthly | Y130: =(Y128/12) -> 0

Sheet Definitions (hidden)
A1: Definitions
A4: Definitions
A6: Gross Annual Income | B6: Yearly cash component of salary before tax. (Taxable income). To be entered by you.
A8: Gross Monthly Income | B8: Yearly cash component of salary, before tax, divided by twelve. Automatically calculated.
A10: Net Monthly Income | B10: Monthly cash component of salary after tax. Automatically calculated.
A12: Taxable Income | B12: Taxable income of the applicant. Enter the gross annual income and the calculator will calculate the net monthly figure using the current Marginal Tax Rates automatically.
A14: Non-Taxable Income | B14: Non taxable income of the applicant. This is generally pension or governement benefit income that is not taxable.
A17: Company Net Profit Before Tax | B17: Yearly cash component of salary after expenses before tax. (Taxable income).
A19: Annual Rental Income | B19: Annual Rental Income received from investment properties (include income from property being purchased if a tenancy agreement is held and can be provided). The calculator will use 80% of the amount entered adjusted for the relevant tax rate.
A21: Monthly Interest Expense (for gearing prurposes only) | B21: The interest expense for investment property where a tax deduction is able to be claimed. This amount is to be allocated to the relevant applicant. The interest expense must not include any principal amount that forms part of the loan payment.
A23: Single Adult | B23: An applicant who is not married or in a defacto relationship and is over 18.
A25: Couples | B25: Applicants who are married or in a defacto relationship.
A27: Children | B27: Number of dependant children under the age of 18.
A29: Living Allowance | B29: The amount of income allocated by La Trobe for general living expenses, excluding rent/board and debt repayment. Each indivual expense item must be entered separately. Where an applicant is married, use the living allowance for a married person even if the application is in one name only. Where an applicant is single, use the living allowance for a single person.
B31: Note: Where the application is in one name only, but it is a married person, all commitments (where joint & several) must be used. If the applicant then fails the NDI policy the partner of the applicant must be added to the loan for approval to occur.
A33: Credit Card (Limit not Debt) | B33: We need to take the full credit card limit into account when calculating serviceability. We will use 3.8% of the total limit, regardless of the debt outstanding.
A35: Sensitivity | B35: An annual percentage rate applied to the total balances of outstanding loans as a precaution against any future interest rate increases. Currently 2.0%.
A37: New Monthly Loan Repayments | B37: This is the monthly loan repayment of the proposed loan. It is a principal and interest repayment. For interest only repayment calculations please refer to a La Trobe underwriter.
A39: Net Surplus | B39: This is the remaining amount of the borrowers available monthly income after living expenses, existing commitments and the proposed commitment are deducted. This amount must be positive to succesfully pass the Serviceability Calculator. Please refer your scenario to a La Trobe underwriter if the loan does not pass the Serviceability Calculator.
A41: SMSF Assets | B41: This is the amount of the Self Managed Super Fund's Assets excluding the security for the loan. This is only applicable to SMSF loans. (We assume an investment return of 3.9% per annum taxed at the current Tax Rate for Superannuation income).

Sheet Admin (hidden)
I17: Enter Folder paths for files to output to:
K19: CSV | M19: \\latrobe1\import_data_serviceability\import
K20: PDF | M20: \\latrobe.biz\dfs\Melbourne PDF\ECF\Serviceability

Sheet RepayCalculator (hidden)
A1: Dropdown box data
A2: Principal & Interest
A3: Interest Only
A6: Serviceability Sensitivity | B6: 0.02
A8: Interest Rate Floor | B8: 0.055
A10: Interest Only Period | B10: Loan Term
A11: 0 | B11: 30
A12: 1 | B12: 29
A13: 2 | B13: 28
A14: 3 | B14: 27
A15: 4 | B15: 26
A16: 5 | B16: 25
B17: 24
B18: 23
B19: 22
B20: 21
B21: 20
B22: 19
B23: 18
B24: 17
B25: 16
B26: 15
B27: 14
B28: 13
B29: 12
B30: 11
B31: 10
B32: 9
B33: 8
B34: 7
B35: 6
B36: 5
B37: 4
B38: 3
B39: 2
B40: 1
B41: 0
A43: Rental Income - Standard | B43: 0.8
A44: Rental Income - SMSF | B44: 0.8
D50: =IF(#REF!="No",IF(B42+RepayCalculator!B6<RepayCalculator!B8,RepayCalculator!#REF!,RepayCalculator!#REF!)) -> 
